Workbook

Sheet Introdução
M4: Link para vídeo
B7: Questionário | C7: https://www.janua.pt/questionariopack
B8: O teu feedback é muito importante. Pedia apenas 3 minutos do teu tempo para responder a poucas perguntas sobre este ebook e sobre as ferramentas e funcionalidades deste pack.
B12: Objetivo do excel
B13: Este ficheiro foi desenvolvido para ajudar gestores e investidores a analisarem a saúde financeira da sua empresa e avaliarem a capacidade de investir, com foco especial em investimentos imobiliários. Serve como ferramenta prática e orientadora para tomada de decisão com base em dados financeiros reais.
B17: A quem se destina?
B18: Pequenas e médias empresas (PMEs) com atividade regular. Empresários em nome individual em regime de contabilidade organizada. Gestores e consultores que pretendam diagnosticar rapidamente a performance de uma empresa. Investidores que avaliam a sustentabilidade financeira antes de tomar decisões de expansão ou investimento.
B26: Estrutura do ficheiro
B27: Balanço – Introdução dos principais elementos patrimoniais da empresa: ativos, passivos e capitais próprios. Demonstração de Resultados – Registo das receitas, custos e resultados operacionais do exercício. Performance – Cálculo automático de indicadores financeiros como: Liquidez Autonomia financeira Rentabilidade Cobertura de juros Entre outros Cada indicador inclui interpretação automática e recomendações práticas. Investimento Imobiliário – Simulação da rentabilidade de um investimento, com base em inputs como custo de aquisição, rendimento expectável, despesas, etc. Relatório – Geração automática de um relatório descritivo pronto a imprimir ou enviar.
B44: Considerações importantes
B45: Os campos a amarelo são de preenchimento obrigatório. As fórmulas estão protegidas para evitar alterações acidentais. - para desproteger cada folha a palavra passe é janua Todos os valores devem ser inseridos em euros (€). Para melhores resultados, use dados do último exercício completo. Os dados introduzidos não são transmitidos a ninguém – ficam apenas neste ficheiro no teu computador. O ficheiro é compatível com versões recentes do Microsoft Excel.

Sheet Balanço
B2: NOME DA ENTIDADE | D2: Alterar os campos a amarelo
B3: BALANÇO (INDIVIDUAL OU CONSOLIDADO) EM: | I3: Ciclos Financeiros | J3: BALANÇO FUNCIONAL de N | O3: Elabore o BALANÇO FUNCIONAL
B4: RÚBRICAS | D4: NOTAS | E4: N | F4: N+1 | G4: N+2 (Atual) | J4: RÚBRICAS | L4: RÚBRICAS | O4: Metodologia para construir o Balanço Funcional
B5: ATIVO | I5: Ciclo de Investimento (renovação) / operações de capital (MLP) | J5: Aplicações Fixas Líquidas (Ativo não corrente) | L5: Recursos Estáveis (Capitais Permanentes) | O5: Pergunta: A informação pertence ao ciclo de exploração?
B6: Ativo não corrente | E6: =SUM(E7:E15) -> 239098 | F6: =SUM(F7:F15) -> 197206 | G6: 226390 | J6: =$E$7+$E$10+$E$8+$E$9+$E$11+$E$12+$E$13+$E$14+$E$15 -> 239098 | L6: =E47+E50 -> 272790 | O6: Resposta: SIM – deverá então a informação ser organizada em Ativo (Necessidades Cíclicas – NC) ou em Passivo (Recursos Cíclicos – RC)
B7: Ativos fixos tangíveis | E7: 135373 | F7: 136070 | G7: 176889 | I7: Fundo de Maneio | J7: =L6-J6 -> 33692 | O7: Resposta: NÃO
B8: Propriedades de investimento | E8: 75156 | F8: 39440 | G8: 30467 | I8: Ciclo de Exploração | J8: Necessidades Cíclicas | L8: Recursos Cíclicos | O8: Pergunta: Qual é o horizonte temporal?
B9: Goodwill | J9: =$E$18+$E$19+$E$20+$E$21+$E$24+$E$27 -> 62474 | L9: =$E$58+$E$59+$E$60+$E$62+$E$63+$E$66 -> 44268 | O9: Resposta: Curto Prazo – os itens do ativo são afetos a Tesouraria Ativa e os itens do passivo são afetos a Tesouraria Passiva Resposta:
B10: Ativos intangíveis | E10: 28569 | F10: 21696 | G10: 19034 | I10: Necessidades do Fundo de Maneio | J10: =J9-L9 -> 18206 | O10: Médio e Longo Prazo – os itens do ativo são agrupados em aplicações fixas líquidas e os itens do passivo são agrupados em recursos estáveis.
B11: Ativos biológicos | I11: Ciclo de Financiamento (tesouraria de curto prazo) | J11: Tesouraria Ativa | L11: Tesouraria Passiva
B12: Participações financeiras - metodo de equivalência patrimonial | J12: =$E$28+$E$25+$E$26 -> 39898 | L12: =$E$61+$E$64+$E$65+$E$66 -> 24412
B13: Outros investimentos financeiros | I13: Tesouraria Líquida | J13: =J12-L12 -> 15486
B14: Créditos a receber
B15: Ativos por impostos diferidos | I15: Ciclos Financeiros | J15: BALANÇO FUNCIONAL de N+1
J16: RÚBRICAS | L16: RÚBRICAS
B17: Ativo corrente | E17: =SUM(E18:E28) -> 102372 | F17: =SUM(F18:F28) -> 114116 | G17: 76454 | I17: Ciclo de Investimento (renovação) / operações de capital (MLP) | J17: Aplicações Fixas Líquidas (Ativo não corrente) | L17: Recursos Estáveis (Capitais Permanentes)
B18: Inventários | E18: 16702 | F18: 20628 | G18: 13038 | J18: =$F$7+$F$10+$F$8+$F$9+$F$11+$F$12+$F$13+$F$14+$F$15 -> 197206 | L18: =F47+F50 -> 243565
B19: Ativos biológicos | I19: Fundo de Maneio | J19: =L18-J18 -> 46359
B20: Clientes | E20: 31456 | F20: 24851 | G20: 35337 | I20: Ciclo de Exploração | J20: Necessidades Cíclicas | L20: Recursos Cíclicos
B21: Estado e outros entes públicos | E21: 14316 | F21: 9377 | G21: 7775 | J21: =$F$18+$F$19+$F$20+$F$21+$F$24+$F$27 -> 54856 | L21: =$F$58+$F$59+$F$60+$F$62+$F$63+$F$66 -> 38656
B22: Capital subscrito e não realizado | I22: Necessidades do Fundo de Maneio | J22: =J21-L21 -> 16200
B23: Outros créditos a receber | I23: Ciclo de Financiamento (tesouraria de curto prazo) | J23: Tesouraria Ativa | L23: Tesouraria Passiva
B24: Diferimentos | J24: =$F$28+$F$25+$F$26 -> 59260 | L24: =$F$61+$F$64+$F$65+$F$66 -> 29101
B25: Ativos financeiros detidos para negociação | I25: Tesouraria Líquida | J25: =J24-L24 -> 30159
B26: Outros ativos financeiros
B27: Ativos não correntes detidos para venda | I27: Ciclos Financeiros | J27: BALANÇO FUNCIONAL de N+2
B28: Caixa e depósitos bancários | E28: 39898 | F28: 59260 | G28: 20304 | J28: RÚBRICAS | L28: RÚBRICAS
I29: Ciclo de Investimento (renovação) / operações de capital (MLP) | J29: Aplicações Fixas Líquidas (Ativo não corrente) | L29: Recursos Estáveis (Capitais Permanentes)
B30: Total do ativo | E30: =E17+E6 -> 341470 | F30: =F17+F6 -> 311322 | G30: 302844 | J30: =$G$7+$G$10+$G$8+$G$9+$G$11+$G$12+$G$13+$G$14+$G$15 -> 226390 | L30: =G47+G50 -> 210168
I31: Fundo de Maneio | J31: =L30-J30 -> -16222
B32: CAPITAL PRÓPRIO E PASSIVO | I32: Ciclo de Exploração | J32: Necessidades Cíclicas | L32: Recursos Cíclicos
B33: CAPITAL PRÓPRIO | J33: =$G$18+$G$19+$G$20+$G$21+$G$24+$G$27 -> 56150 | L33: =$G$58+$G$59+$G$60+$G$62+$G$63+$G$66 -> 67117
B34: Capital subscrito | E34: 50000 | F34: 50000 | G34: 50000 | I34: Necessidades do Fundo de Maneio | J34: =J33-L33 -> -10967
B35: Ações (quotas) próprias | I35: Ciclo de Financiamento (tesouraria de curto prazo) | J35: Tesouraria Ativa | L35: Tesouraria Passiva
B36: Outros instrumentos de capital próprio | J36: =$G$28+$G$25+$G$26 -> 20304 | L36: =$G$61+$G$64+$G$65+$G$66 -> 25559
B37: Prémios de emissão | I37: Tesouraria Líquida | J37: =J36-L36 -> -5255
B38: Reservas legais | E38: 16649 | F38: 20420 | G38: 20273
B39: Outras reservas
B40: Resultados transitados | E40: 21306 | F40: 34741 | G40: 21799
B41: Excedentes de revalorização
B42: Ajustamentos / outras variações do capital próprio
B44: Resultado líquido do período | E44: 29821 | F44: -921 | G44: 24634 | H44: =IF(E44<>'Demonstração de Resultados'!E31, "⚠️ Resultado líquido do período no balanço diferente da Demonstração de Resultados", IF(F44<>'Demonstração de Resultados'!F31, "⚠️ Resultado líquido do período no balanço diferente da Demonstração de Resultados", IF(G44<>'Demonstração de Resultados'!G31, "⚠️ Resultado líquido do período no balanço diferente da Demonstração de Resultados", ""))) -> 
B45: Interesses que não controlam
B47: Total do capital próprio | E47: =SUM(E34:E45) -> 117776 | F47: =SUM(F34:F45) -> 104240 | G47: 116706
B49: PASSIVO
B50: Passivo não corrente | E50: =SUM(E51:E56) -> 155014 | F50: =SUM(F51:F56) -> 139325 | G50: 93462
B51: Provisões | E51: 8447 | F51: 8651 | G51: 17646
B52: Financiamentos obtidos | E52: 146567 | F52: 130674 | G52: 75816
B53: Responsabilidades por benefícios pós-emprego
B54: Passivos por impostos diferidos
B55: Outras dívidas a pagar
B57: Passivo corrente | E57: =SUM(E58:E66) -> 68680 | F57: =SUM(F58:F66) -> 67757 | G57: 92676
B58: Fornecedores | E58: 32625 | F58: 33565 | G58: 52432
B59: Adiantamentos por clientes
B60: Estado e outros entes públicos | E60: 11643 | F60: 5091 | G60: 14685
B61: Financiamentos obtidos | E61: 11622 | F61: 18555 | G61: 12812
B62: Outras dívidas a pagar
B63: Diferimentos
B64: Passivos financeiros detidos para negociação
B65: Outros passivos financeiros | E65: 12790 | F65: 10546 | G65: 12747
B66: Passivos não correntes detidos para venda
B68: Total do passivo | E68: =E50+E57 -> 223694 | F68: =F50+F57 -> 207082 | G68: 186138
B69: Total do capital próprio e do passivo | E69: =E68+E47 -> 341470 | F69: =F68+F47 -> 311322 | G69: 302844
B70: Verificação Ativo = Passivo + Capital Próprio | E70: =IF(E69=E30, "✅", "⚠️") -> ✅ | F70: =IF(F69=F30, "✅", "⚠️") -> ✅ | G70: =IF(G69=G30, "✅", "⚠️") -> ✅

Sheet Demonstração de Resultados
B2: NOME DA ENTIDADE | D2: Inserir todos os valores com sinal negativo ou positivo
B3: DEMONSTRAÇÃO (INDIVIDUAL OU CONSOLIDADO) DE RESULTADOS POR NATUREZAS EM: | I3: DEMONSTRAÇÃO DE RESULTADOS FUNCIONAL
B4: RUBRICAS | D4: NOTAS | E4: N | F4: N+1 | G4: N+2 (Atual) | I4: RUBRICAS | K4: N | L4: N+1 | M4: N+2
B5: Vendas e serviços prestados | E5: 397065 | F5: 420353 | G5: 418213 | I5: RENDIMENTOS OPERACIONAIS | K5: =SUM(K6:K11) -> 407350 | L5: =SUM(L6:L11) -> 431408 | M5: =SUM(M6:M11) -> 430128
B6: Subsídios à exploração | I6: Vendas e serviços prestados | K6: =E5 -> 397065 | L6: =F5 -> 420353 | M6: =G5 -> 418213
B7: Ganhos/perdas imputados de subsidiárias, associadas e empreendimentos conjuntos | I7: Subsídios à exploração | K7: =E6 -> 0 | L7: 0 | M7: 0
B8: Variação nos inventários de produção | I8: Variação nos inventários de produção | K8: =E8 -> 0 | L8: 0 | M8: 0
B9: Trabalhos para a própria entidade | I9: Trabalhos para a própria entidade | K9: 0 | L9: 0 | M9: 0
B10: Custos de mercadorias vendidas e das matérias consumidas | E10: 202043 | F10: 233833 | G10: 237336 | I10: Aumentos/reduções de justo valor | K10: =E17 -> 0 | L10: 0 | M10: 0
B11: Fornecimentos e serviços externos | E11: 46794 | F11: 56194 | G11: 41697 | I11: Outros rendimentos | K11: 10285 | L11: 11055 | M11: 11915
B12: Gastos com o pessoal | E12: 85035 | F12: 106131 | G12: 83002 | I12: GASTOS OPERACIONAIS | K12: =SUM(K13:K22) -> 363733 | L12: =SUM(L13:L22) -> 425681 | M12: =SUM(M13:M22) -> 391067
B13: Imparidade de inventários (perdas/reversões) | I13: Custos de mercadorias vendidas e das matérias consumidas | K13: =E10 -> 202043 | L13: =F10 -> 233833 | M13: =G10 -> 237336
B14: Imparidade de dívidas a receber (perdas/reversões) | I14: Fornecimentos e serviços externos | K14: =E11 -> 46794 | L14: 56194 | M14: 41697
B15: Provisões (aumentos/reduções) | I15: Gastos com o pessoal | K15: 85035 | L15: 106131 | M15: 83002
B16: Imparidade de investimentos não depreciáveis/amortizáveis (perdas/reversões) | I16: Imparidade de inventários (perdas/reversões) | K16: 0 | L16: 0 | M16: 0
B17: Aumentos/reduções de justo valor | I17: Imparidade de dívidas a receber (perdas/reversões) | K17: 0 | L17: 0 | M17: 0
B18: Outros rendimentos | E18: 10285 | F18: 11055 | G18: 11915 | I18: Provisões (aumentos/reduções) | K18: 0 | L18: 0 | M18: 0
B19: Outros gastos | E19: 9521 | F19: 5808 | G19: 14390 | I19: Imparidade de investimentos não depreciáveis/amortizáveis (perdas/reversões) | K19: 0 | L19: 0 | M19: 0
I20: Outros gastos | K20: =E19 -> 9521 | L20: =F19 -> 5808 | M20: =G19 -> 14390
B21: Resultado antes de depreciações, gastos de financiamento e impostos | E21: =E5-E10-E11-E12+E18-E19 -> 63957 | F21: =F5-F10-F11-F12+F18-F19 -> 29442 | G21: 53703 | I21: Gastos/reversões de depreciação e de amortização | K21: =E22 -> 20340 | L21: =F22 -> 23715 | M21: =G22 -> 14642
B22: Gastos/reversões de depreciação e de amortização | E22: 20340 | F22: 23715 | G22: 14642 | I22: Imparidade de investimentos depreciáveis/amortizações (perdas/reversões)
B23: Imparidade de investimentos depreciáveis/amortizações (perdas/reversões) | I23: RESULTADOS FINANCEIROS | K23: =SUM(K24:K25) -> 5293 | L23: =SUM(L24:L25) -> 5398 | M23: =SUM(M24:M25) -> 8424
I24: Juros e rendimentos similares obtidos | K24: =E26 -> 0 | L24: 0 | M24: 0
B25: Resultado operacional (antes de gastos de financiamento e impostos) | E25: =E21-E22 -> 43617 | F25: =F21-F22 -> 5727 | G25: =G21-G22 -> 39061 | I25: Juros e gastos similares suportados | K25: 5293 | L25: 5398 | M25: 8424
B26: Juros e rendimentos similares obtidos | I26: RESULTADOS EVENTUAIS | K26: =SUM(K27:K28) -> 0 | L26: =SUM(L27:L28) -> 0 | M26: 0
B27: Juros e gastos similares suportados | E27: 5293 | F27: 5398 | G27: 8424 | I27: Ganhos/perdas imputados de subsidiárias, associadas e empreendimentos conjuntos | K27: =E7 -> 0 | L27: =F7 -> 0 | M27: =G7 -> 0
B28: Impostos Indiretos | I28: Imparidade de investimentos não depreciáveis/amortizáveis (perdas/reversões) | K28: =E16 -> 0 | L28: =F16 -> 0 | M28: =G16 -> 0
B29: Resultado antes de impostos | E29: =E25-E27 -> 38324 | F29: =F25-F27 -> 329 | G29: =G25-G27 -> 30637 | I29: Resultado antes de impostos | K29: =E29 -> 38324 | L29: =F29 -> 329 | M29: 30637
B30: Imposto sobre o rendimento do período | E30: 8503 | F30: 1250 | G30: 6003 | I30: Imposto sobre o rendimento do período | K30: =E30 -> 8503 | L30: 1250 | M30: 6003
B31: Resultado líquido do período | E31: =E29-E30 -> 29821 | F31: =F29-F30 -> -921 | G31: =G29-G30 -> 24634 | I31: Resultado líquido do período | K31: 29821 | L31: -921 | M31: 24634
I32: Dividendos
I33: Resultado retido | K33: =K31-K32 -> 29821 | L33: =L31-L32 -> -921 | M33: 24634

Sheet Performance
B2: QUADRO RESUMO | I2: INDICADORES | J2: 2024 (N) | K2: 2025 (N+1) | L2: 2026 (N+2) | M2: Valores do Setor de Atividade | N2: Informação para N+2 | O2: Comparação com o Setor (para N+2) | P2: Comentário Pessoal
B3: DIMENSÃO | C3: INDICADOR | D3: VALOR EM N+2 | E3: Recomendado | F3: COMENTÁRIO PARA N+2 | G3: RECOMENDAÇÕES | H3: 1 | I3: Consumos intermédios (CI) | J3: ='Demonstração de Resultados'!K13+'Demonstração de Resultados'!K14+'Demonstração de Resultados'!E28 -> 248837 | K3: ='Demonstração de Resultados'!L13+'Demonstração de Resultados'!L14+'Demonstração de Resultados'!F28 -> 290027 | L3: ='Demonstração de Resultados'!M13+'Demonstração de Resultados'!M14+'Demonstração de Resultados'!G28 -> 279033 | M3: 250000 | N3: =IF(AND(L3>K3,L3>J3),"▼ A empresa está a gastar mais com a sua operação face aos anos anteriores.", IF(AND(L3<K3,L3<J3),"▲ A empresa está a gastar menos com a sua operação face aos anos anteriores.", IF(AND(L3<K3,L3>J3),"► Os gastos com a operação diminuíram face ao último ano, mas continuam acima de níveis anteriores.", IF(AND(L3>K3,L3<J3),"► Os gastos com a operação aumentaram face ao último ano, mas continuam abaixo dos níveis anteriores.", "► Os gastos com a operação mantiveram-se estáveis.")))) -> ► Os gastos com a operação diminuíram face ao último ano, mas continuam acima de níveis anteriores. | O3: =IF(M3="","",IF(L3>M3,"▲ A empresa apresenta melhor desempenho que o setor neste indicador.", IF(L3<M3,"▼ A empresa apresenta pior desempenho que o setor neste indicador.", "► A empresa apresenta um desempenho semelhante ao setor neste indicador."))) -> ▲ A empresa apresenta melhor desempenho que o setor neste indicador.
B4: RENTABILIDADE | C4: Return on Equity (ROE) | D4: =L42 -> 0.2110774082 | E4: 0.05 | F4: =N42 -> ► A rentabilidade para os sócios manteve-se estável. | G4: =IF(D4<E4,"Melhorar margem; aumentar eficiência ou reduzir custos fixos.","") ->  | H4: 2 | I4: Valor Bruto de Produção (VBP) | J4: ='Demonstração de Resultados'!E5+'Demonstração de Resultados'!E8+'Demonstração de Resultados'!E9+'Demonstração de Resultados'!E6+'Demonstração de Resultados'!E18 -> 407350 | K4: ='Demonstração de Resultados'!F5+'Demonstração de Resultados'!F8+'Demonstração de Resultados'!F9+'Demonstração de Resultados'!F6+'Demonstração de Resultados'!F18 -> 431408 | L4: ='Demonstração de Resultados'!G5+'Demonstração de Resultados'!G8+'Demonstração de Resultados'!G9+'Demonstração de Resultados'!G6+'Demonstração de Resultados'!G18 -> 430128 | M4: 500000 | N4: =IF(AND(L4>K4,L4>J4),"▲ A empresa aumentou o volume total produzido e vendido, mostrando crescimento nas suas operações comerciais.", IF(AND(L4<K4,L4<J4),"▼ A empresa reduziu o volume total produzido e vendido, mostrando contração nas suas operações comerciais.", IF(AND(L4<K4,L4>J4),"► O volume produzido e vendido caiu face ao último ano, mas ainda é superior ao de há dois anos.", IF(AND(L4>K4,L4<J4),"► O volume produzido e vendido aumentou face ao último ano, mas ainda é inferior ao desempenho passado.", "► O volume produzido e vendido manteve-se estável.")))) -> ► O volume produzido e vendido caiu face ao último ano, mas ainda é superior ao de há dois anos. | O4: =IF(M4="","",IF(L4>M4,"▲ A empresa apresenta melhor desempenho que o setor neste indicador.", IF(L4<M4,"▼ A empresa apresenta pior desempenho que o setor neste indicador.", "► A empresa apresenta um desempenho semelhante ao setor neste indicador."))) -> ▼ A empresa apresenta pior desempenho que o setor neste indicador.
H5: 3 | I5: Valor Acrescentado Bruto (VAB) | J5: =J4-J3 -> 158513 | K5: =K4-K3 -> 141381 | L5: 151095 | M5: 200000 | N5: =IF(AND(L5>K5,L5>J5),"▲ A empresa está a criar mais valor económico face aos anos anteriores.", IF(AND(L5<K5,L5<J5),"▼ A empresa está a criar menos valor económico face aos anos anteriores.", IF(AND(L5<K5,L5>J5),"► O valor económico criado diminuiu face ao último ano, mas continua acima dos níveis anteriores.", IF(AND(L5>K5,L5<J5),"► O valor económico criado aumentou face ao último ano, mas continua abaixo dos níveis anteriores.", "► A criação de valor económico manteve-se estável.")))) -> ► O valor económico criado aumentou face ao último ano, mas continua abaixo dos níveis anteriores. | O5: ▼ A empresa apresenta pior desempenho que o setor neste indicador.
C6: Return on Assets (ROA) | D6: =L41 -> 0.1289805973 | E6: 0.03 | F6: =N41 -> ▲ A empresa melhorou a capacidade de gerar resultados operacionais com o total dos ativos investidos. | G6: =IF(D6<E6,"Aumentar a rentabilidade operacional com melhor gestão dos ativos e redução de ineficiências.","") ->  | H6: 4 | I6: Taxa de Crescimento (TC) | K6: =(K5-J5)/J5 -> -0.1080794635 | L6: =(L5-K5)/K5 -> 0.06870795934 | M6: 0.05 | N6: =IF(L6>0,"▲ A empresa está em crescimento.", IF(L6<0,"▼ A empresa está a regredir.", "► A empresa mantém estabilidade nas suas operações.")) -> ▲ A empresa está em crescimento. | O6: ▲ A empresa apresenta melhor desempenho que o setor neste indicador.
H7: 5 | I7: Excedente Bruto de Exploração (EBE) | J7: ='Demonstração de Resultados'!E25+'Demonstração de Resultados'!E22+'Demonstração de Resultados'!E23+'Demonstração de Resultados'!E13+'Demonstração de Resultados'!E14+'Demonstração de Resultados'!E15+'Demonstração de Resultados'!E16+'Demonstração de Resultados'!E17 -> 63957 | K7: ='Demonstração de Resultados'!F25+'Demonstração de Resultados'!F22+'Demonstração de Resultados'!F23+'Demonstração de Resultados'!F13+'Demonstração de Resultados'!F14+'Demonstração de Resultados'!F15+'Demonstração de Resultados'!F16+'Demonstração de Resultados'!F17 -> 29442 | L7: ='Demonstração de Resultados'!G25+'Demonstração de Resultados'!G22+'Demonstração de Resultados'!G23+'Demonstração de Resultados'!G13+'Demonstração de Resultados'!G14+'Demonstração de Resultados'!G15+'Demonstração de Resultados'!G16+'Demonstração de Resultados'!G17 -> 53703 | M7: 150000 | N7: =IF(AND(L7>K7,L7>J7),"▲ A empresa aumentou o lucro gerado diretamente pelas suas operações, mostrando maior eficiência na gestão operacional.", IF(AND(L7<K7,L7<J7),"▼ A empresa diminuiu o lucro gerado diretamente pelas suas operações, mostrando menor eficiência na gestão operacional.", IF(AND(L7<K7,L7>J7),"► O lucro operacional caiu face ao último ano, mas permanece acima dos níveis anteriores, mostrando eficiência intermédia.", IF(AND(L7>K7,L7<J7),"► O lucro operacional aumentou face ao último ano, mas continua abaixo do desempenho anterior, mostrando eficiência intermédia.", "► O lucro operacional manteve-se estável.")))) -> ► O lucro operacional aumentou face ao último ano, mas continua abaixo do desempenho anterior, mostrando eficiência intermédia. | O7: ▼ A empresa apresenta pior desempenho que o setor neste indicador.
B8: ESTRUTURA FINANCEIRA | C8: Autonomia Financeira (RAF) | D8: =L10 -> 0.3853667235 | E8: 0.33 | F8: =N10 -> ► Autonomia financeira razoável, mas atenção ao equilíbrio entre capitais próprios e alheios. | G8: =IF(D8<E8,"Reforçar capitais próprios ou reduzir endividamento.","") ->  | H8: 6 | I8: Excedente Líquido de Produção (ELP) | J8: ='Demonstração de Resultados'!E25+'Demonstração de Resultados'!E13+'Demonstração de Resultados'!E14+'Demonstração de Resultados'!E16+'Demonstração de Resultados'!E17 -> 43617 | K8: ='Demonstração de Resultados'!F25+'Demonstração de Resultados'!F13+'Demonstração de Resultados'!F14+'Demonstração de Resultados'!F16+'Demonstração de Resultados'!F17 -> 5727 | L8: ='Demonstração de Resultados'!G25+'Demonstração de Resultados'!G13+'Demonstração de Resultados'!G14+'Demonstração de Resultados'!G16+'Demonstração de Resultados'!G17 -> 39061 | M8: 150000 | N8: =IF(AND(L8>K8,L8>J8),"▲ O excedente líquido (lucro após considerar depreciações e provisões) melhorou face aos anos anteriores, revelando maior capacidade real de gerar dinheiro com as operações.", IF(AND(L8<K8,L8<J8),"▼ O excedente líquido (lucro após considerar depreciações e provisões) piorou face aos anos anteriores, revelando menor capacidade real de gerar dinheiro com as operações.", IF(AND(L8<K8,L8>J8),"► O excedente líquido diminuiu face ao último ano, mas mantém-se acima dos níveis anteriores, indicando uma capacidade intermédia de geração de dinheiro com as operações.", IF(AND(L8>K8,L8<J8),"► O excedente líquido aumentou face ao último ano, mas ainda está abaixo dos níveis anteriores, indicando uma capacidade intermédia de geração de dinheiro com as operações.", "► O excedente líquido manteve-se estável, indicando uma capacidade constante de geração de dinheiro com as operações.")))) -> ► O excedente líquido aumentou face ao último ano, mas ainda está abaixo dos níveis anteriores, indicando uma capacidade intermédia de geração de dinheiro com as operações. | O8: ▼ A empresa apresenta pior desempenho que o setor neste indicador.
I9: RÁCIOS DO BALANÇO
C10: Rácio de cobertura de gastos de financiamento (RCGF) | D10: =L23 -> 4.636870845 | E10: 1 | F10: =N23 -> ▲ A empresa tem boa capacidade para suportar custos financeiros. Este indicador melhorou face ao último ano. | G10: =IF(D10<E10,"Reestruturar a dívida: renegociar prazos de financiamento, consolidar empréstimos ou cortar custos operacionais para aumentar a margem.","") ->  | H10: 7 | I10: Rácio de Autonomia Financeira (RAF) | J10: =Balanço!E47/Balanço!E30 -> 0.3449087768 | K10: =Balanço!F47/Balanço!F30 -> 0.3348301758 | L10: =Balanço!G47/Balanço!G30 -> 0.3853667235 | M10: 0.3 | N10: =IF(L10>=0.5,"▲ Excelente autonomia financeira. A empresa utiliza maioritariamente fundos próprios, revelando baixo risco financeiro.", IF(AND(L10>=0.3333,L10<0.5),"► Autonomia financeira razoável, mas atenção ao equilíbrio entre capitais próprios e alheios.", "▼ Autonomia financeira baixa. A empresa depende demasiado de financiamento externo, o que aumenta o risco financeiro.")) -> ► Autonomia financeira razoável, mas atenção ao equilíbrio entre capitais próprios e alheios. | O10: ▲ A empresa apresenta melhor desempenho que o setor neste indicador.
H11: 8 | I11: Rácio de Endividamento (RE) | J11: =Balanço!E68/Balanço!E30 -> 0.6550912232 | K11: =Balanço!F68/Balanço!F30 -> 0.6651698242 | L11: =Balanço!G68/Balanço!G30 -> 0.6146332765 | M11: 0.5 | N11: =IF(L11<0.5,"▲ Nível saudável de endividamento. A empresa mantém dívidas controladas, com risco financeiro reduzido.", IF(AND(L11>=0.5,L11<=0.66),"► Nível moderado de endividamento. Necessária atenção à gestão da dívida para evitar riscos futuros.", "▼ Elevado nível de endividamento. A empresa apresenta grande dependência de dívidas, aumentando o risco financeiro.")) -> ► Nível moderado de endividamento. Necessária atenção à gestão da dívida para evitar riscos futuros. | O11: =IF(M11="","",IF(L11<M11,"▲ A empresa apresenta melhor desempenho que o setor neste indicador.", IF(L11>M11,"▼ A empresa apresenta pior desempenho que o setor neste indicador.", "► A empresa apresenta um desempenho semelhante ao setor neste indicador."))) -> ▼ A empresa apresenta pior desempenho que o setor neste indicador.
B12: BALANÇO | C12: Resumo do Balanço | D12: =L14 -> Mau | E12: Médio ou Bom | F12: =N14 -> ▼ Situação financeira crítica, com desequilíbrio elevado: fundo de maneio negativo e tesouraria deficitária. Risco iminente de incapacidade em cumprir compromissos financeiros. | G12: =IF(D12="mau","A empresa está demasiado dependente de dívidas de curto prazo. Deve procurar financiamento a longo prazo ou reforçar o capital próprio para ganhar estabilidade.","") -> A empresa está demasiado dependente de dívidas de curto prazo. Deve procurar financiamento a longo prazo ou reforçar o capital próprio para ganhar estabilidade. | H12: 9 | I12: Rácio de Solvabilidade (RS) | J12: =Balanço!E47/Balanço!E68 -> 0.5265049577 | K12: =Balanço!F47/Balanço!F68 -> 0.5033754744 | L12: =Balanço!G47/Balanço!G68 -> 0.6269864294 | M12: 0.9 | N12: =IF(L12>=1,"▲ Excelente solvabilidade. A empresa consegue facilmente cobrir as suas dívidas com recursos próprios.", IF(AND(L12>=0.5,L12<1),"► Solvabilidade aceitável, mas pode existir alguma vulnerabilidade financeira.", "▼ Solvabilidade insuficiente. A empresa poderá enfrentar dificuldades financeiras para honrar as suas dívidas.")) -> ► Solvabilidade aceitável, mas pode existir alguma vulnerabilidade financeira. | O12: ▼ A empresa apresenta pior desempenho que o setor neste indicador.
H13: 10 | I13: Rácio de Solvabilidade em Sentido Restrito (RSSR) | J13: =Balanço!E30/Balanço!E68 -> 1.526504958 | K13: =Balanço!F30/Balanço!F68 -> 1.503375474 | L13: =Balanço!G30/Balanço!G68 -> 1.626986429 | M13: 1.5 | N13: =IF(L13>1.5,"▲ Boa cobertura das dívidas pelo ativo. A empresa está muito segura para os credores.", IF(AND(L13>=1,L13<=1.5),"► Cobertura suficiente, mas deve ser acompanhada de perto.", "▼ Cobertura insuficiente. Ativo pode não ser suficiente para cobrir dívidas, situação de risco elevado.")) -> ▲ Boa cobertura das dívidas pelo ativo. A empresa está muito segura para os credores. | O13: =IF(M13="","",IF(L13>M13,"▲ A empresa apresenta melhor desempenho que o setor neste indicador.", IF(L13<M13,"▼ A empresa apresenta pior desempenho que o setor neste indicador.", "► A empresa apresenta um desempenho semelhante ao setor neste indicador."))) -> ▲ A empresa apresenta melhor desempenho que o setor neste indicador.
B14: LIQUIDEZ | C14: Liquidez Geral (LG) | D14: =L37 -> 0.824960076 | E14: 1 | F14: =N37 -> ▼ A empresa pode ter dificuldades em cumprir os compromissos de curto prazo. Indicador diminuiu face aos anos anteriores, piorando a situação financeira. | G14: =IF(D14<E14,"Melhorar liquidez: renegociar prazos com fornecedores e acelerar cobranças a clientes.","") -> Melhorar liquidez: renegociar prazos com fornecedores e acelerar cobranças a clientes. | H14: 11 | I14: RESUMO DO BALANÇO FUNCIONAL | J14: =IF(AND(Balanço!J7>0,Balanço!J10<0,Balanço!J13>0),"Bom", IF(AND(Balanço!J7>0,Balanço!J10>0,Balanço!J13>0),"Bom", IF(AND(Balanço!J7>0,Balanço!J10>0,Balanço!J13<0),"Médio", IF(AND(Balanço!J7<0,Balanço!J10<0,Balanço!J13>0),"Médio", "Mau")))) -> Bom | K14: =IF(AND(Balanço!J19>0,Balanço!J22<0,Balanço!J25>0),"Bom", IF(AND(Balanço!J19>0,Balanço!J22>0,Balanço!J25>0),"Bom", IF(AND(Balanço!J19>0,Balanço!J22>0,Balanço!J25<0),"Médio", IF(AND(Balanço!J19<0,Balanço!J22<0,Balanço!J25>0),"Médio", "Mau")))) -> Bom | L14: =IF(AND(Balanço!J31>0,Balanço!J34<0,Balanço!J37>0),"Bom", IF(AND(Balanço!J31>0,Balanço!J34>0,Balanço!J37>0),"Bom", IF(AND(Balanço!J31>0,Balanço!J34>0,Balanço!J37<0),"Médio", IF(AND(Balanço!J31<0,Balanço!J34<0,Balanço!J37>0),"Médio", "Mau")))) -> Mau | N14: =IF(AND(Balanço!J31>0,Balanço!J34>0,Balanço!J37>0), "▲ Situação financeira equilibrada, com fundo de maneio suficiente para cobrir as necessidades operacionais. Manter atenção à gestão de ativos e dívidas de curto prazo.", IF(AND(Balanço!J31>0,Balanço!J34>0,Balanço!J37<0), "► Fundo de maneio positivo, mas insuficiente. Empresa depende parcialmente de financiamentos bancários para suportar necessidades operacionais.", IF(AND(Balanço!J31<0,Balanço!J34>0,Balanço!J37<0), "▼ Situação financeira delicada: recursos estáveis insuficientes e elevada dependência de financiamentos de curto prazo. Alto risco financeiro.", IF(AND(Balanço!J31>0,Balanço!J34<0,Balanço!J37>0), "▲ Situação financeira muito favorável: necessidades operacionais cobertas e excedente financeiro disponível. Atenção apenas à eficiência na aplicação dos recursos.", IF(AND(Balanço!J31<0,Balanço!J34<0,Balanço!J37>0), "► Situação financeira razoável, com necessidades operacionais totalmente cobertas, mas risco devido a recursos estáveis insuficientes. Acompanhar evolução com atenção.", IF(AND(Balanço!J31<0,Balanço!J34<0,Balanço!J37<0), "▼ Situação financeira crítica, com desequilíbrio elevado: fundo de maneio negativo e tesouraria deficitária. Risco iminente de incapacidade em cumprir compromissos financeiros.", "► Dados financeiros inconsistentes ou incompletos.")))))) -> ▼ Situação financeira crítica, com desequilíbrio elevado: fundo de maneio negativo e tesouraria deficitária. Risco iminente de incapacidade em cumprir compromissos financeiros. | O14: =IF(M14="","",IF(L14>M14,"▲ A empresa apresenta melhor desempenho que o setor neste indicador.", IF(L14<M14,"▼ A empresa apresenta pior desempenho que o setor neste indicador.", "► A empresa apresenta um desempenho semelhante ao setor neste indicador."))) -> 
H15: 12 | I15: Ativo Económico | J15: =Balanço!E7+Balanço!$J$9 -> 197847 | K15: =Balanço!F7+Balanço!$J$9 -> 198544 | L15: =Balanço!G7+Balanço!$J$9 -> 239363 | M15: 200000 | N15: ="► A empresa necessita de " & TEXT(L15,"#,##0 €") & " para manter a sua atividade operacional." -> ► A empresa necessita de 239363,0 € para manter a sua atividade operacional. | O15: ▲ A empresa apresenta melhor desempenho que o setor neste indicador.
B16: EFICIÊNCIA | C16: Rotação do Ativo (RAT) | D16: =L33 -> 1.380951909 | E16: 1 | F16: =N33 -> ▲ A empresa está mais eficiente em gerar vendas com o investimento total face aos anos anteriores. | G16: =IF(D16<E16,"Melhorar eficiência operacional e rentabilizar melhor os ativos existentes.","") ->  | I16: INDICADORES DE LONGO PRAZO
H17: 13 | I17: Rácio de Estrutura (RDE) | J17: =Balanço!E50/Balanço!E47 -> 1.316176471 | K17: =Balanço!F50/Balanço!F47 -> 1.336579048 | L17: =Balanço!G50/Balanço!G47 -> 0.8008328621 | M17: 0.6 | N17: =IF(L17=1,"► Recursos igualmente divididos entre capital próprio e dívida de curto prazo.", IF(L17>1,"▼ Dívida de curto prazo predomina sobre fundos próprios, maior risco financeiro.", "▲ Fundos próprios predominam sobre a dívida de curto prazo, situação favorável financeiramente.")) & IF(AND(L17>K17,L17>J17)," Indicador aumentou face aos anos anteriores, ou seja, a empresa tem vindo a endividar-se.", IF(AND(L17<K17,L17<J17)," Indicador diminuiu face aos anos anteriores, ou seja, a empresa tem vindo a diminuir a sua dívida.", IF(AND(L17>K17,L17<J17)," Indicador aumentou face ao último ano, mas diminuiu em relação a dois anos atrás.", IF(AND(L17<K17,L17>J17)," Indicador diminuiu face ao último ano, mas aumentou em relação a dois anos atrás.", " Indicador está estável face aos últimos anos.")))) -> ▲ Fundos próprios predominam sobre a dívida de curto prazo, situação favorável financeiramente. Indicador diminuiu face aos anos anteriores, ou seja, a empresa tem vindo a diminuir a sua dívida. | O17: ▲ A empresa apresenta melhor desempenho que o setor neste indicador.
B18: RISCO | C18: Grau de Alavanca Financeira (GAF) | D18: =L57 -> 1.274961648 | E18: 3 | F18: =N57 -> ► O risco financeiro manteve-se estável. | G18: =IF(D18>E18,"Reduzir o risco financeiro: estabilizar os resultados operacionais e controlar o endividamento.","") ->  | H18: 14 | I18: Rácio de Estabilidade de Financiamento (REF) | J18: =Balanço!L6/Balanço!E69 -> 0.7988695932 | K18: =Balanço!L18/Balanço!F69 -> 0.7823571736 | L18: =Balanço!L30/Balanço!G69 -> 0.6939810596 | M18: 0.7 | N18: =IF(L18>=100%,"▲ A empresa tem financiamento estável para toda a sua atividade, o que é seguro e positivo.", IF(L18>=70%,"► A empresa tem financiamento estável para a maior parte da atividade, mas deve monitorizar o financiamento de curto prazo.", "▼ A empresa depende demasiado de empréstimos de curto prazo, aumentando o risco financeiro.")) & IF(AND(L18>K18,L18>J18)," Este indicador tem aumentado nos últimos anos, o que é bom sinal.", IF(AND(L18<K18,L18<J18)," Este indicador tem diminuído nos últimos anos, o que é mau sinal.", IF(AND(L18>K18,L18<J18)," Este indicador subiu face ao ano anterior, mas está abaixo do nível de há dois anos.", IF(AND(L18<K18,L18>J18)," Este indicador diminuiu face ao último ano, mas está acima de há dois anos.", " Este indicador manteve-se estável.")))) -> ▼ A empresa depende demasiado de empréstimos de curto prazo, aumentando o risco financeiro. Este indicador tem diminuído nos últimos anos, o que é mau sinal. | O18: ▼ A empresa apresenta pior desempenho que o setor neste indicador.
H19: 15 | I19: Rácio de Estrutura do Passivo (REP) | J19: =Balanço!E57/Balanço!E50 -> 0.4430567562 | K19: =Balanço!F57/Balanço!F50 -> 0.4863233447 | L19: =Balanço!G57/Balanço!G50 -> 0.991590165 | M19: 0.7 | N19: =IF(L19=1,"► A dívida da empresa está equilibrada entre curto prazo e médio/longo prazo.", IF(L19>1,"▼ A maior parte da dívida da empresa vence-se rapidamente (curto prazo), o que pode pressionar a tesouraria.", "▲ A maior parte da dívida da empresa vence-se num prazo longo, o que dá conforto financeiro.")) & IF(AND(L19>K19,L19>J19)," Este indicador tem aumentado nos últimos anos, o que é mau sinal.", IF(AND(L19<K19,L19<J19)," Este indicador tem diminuído nos últimos anos, o que é bom sinal.", IF(AND(L19>K19,L19<J19)," Este indicador subiu face ao ano anterior, mas está abaixo do nível de há dois anos.", IF(AND(L19<K19,L19>J19)," Este indicador diminuiu face ao último ano, mas está acima de há dois anos.", " Este indicador manteve-se estável.")))) -> ▲ A maior parte da dívida da empresa vence-se num prazo longo, o que dá conforto financeiro. Este indicador tem aumentado nos últimos anos, o que é mau sinal. | O19: =IF(M19="","",IF(L19<M19,"▲ A empresa apresenta melhor desempenho que o setor neste indicador.", IF(L19>M19,"▼ A empresa apresenta pior desempenho que o setor neste indicador.", "► A empresa apresenta um desempenho semelhante ao setor neste indicador."))) -> ▼ A empresa apresenta pior desempenho que o setor neste indicador.
H20: 16 | I20: Rácio de Cobertura das Aplicações Fixas Líquidas por Recursos Estáveis (RCAFLRE) | J20: =Balanço!L6/Balanço!J6 -> 1.140912931 | K20: =Balanço!L18/Balanço!J18 -> 1.235079054 | L20: =Balanço!L30/Balanço!J30 -> 0.9283448916 | M20: 0.8 | N20: =IF(L20>1,"▲ A empresa financia os seus investimentos de longo prazo com fundos próprios ou empréstimos de longo prazo, o que é positivo.", IF(L20=1,"► O financiamento dos investimentos é justo, sem margem adicional, situação delicada.", "▼ A empresa não financia totalmente os investimentos de longo prazo com fundos próprios ou empréstimos de longo prazo, aumentando o risco financeiro.")) & IF(AND(L20>K20,L20>J20)," Este indicador tem aumentado nos últimos anos, o que é bom sinal.", IF(AND(L20<K20,L20<J20)," Este indicador tem diminuído nos últimos anos, o que é mau sinal.", IF(AND(L20>K20,L20<J20)," Este indicador subiu face ao ano anterior, mas está abaixo do nível de há dois anos.", IF(AND(L20<K20,L20>J20)," Este indicador diminuiu face ao último ano, mas está acima de há dois anos.", " Este indicador manteve-se estável.")))) -> ▼ A empresa não financia totalmente os investimentos de longo prazo com fundos próprios ou empréstimos de longo prazo, aumentando o risco financeiro. Este indicador tem diminuído nos últimos anos, o que é mau sinal. | O20: ▲ A empresa apresenta melhor desempenho que o setor neste indicador.
H21: 17 | I21: Rácio de Cobertura das Aplicações Fixas Líquidas por Capital Próprio (RCAFLCP) | J21: =Balanço!E47/Balanço!J6 -> 0.4925846306 | K21: =Balanço!F47/Balanço!J18 -> 0.528584323 | L21: =Balanço!G47/Balanço!J30 -> 0.5155086355 | M21: 0.6 | N21: =IF(L21>1,"▲ A empresa financia os seus investimentos com dinheiro próprio, reduzindo o risco financeiro.", IF(L21=1,"► A empresa financia os seus investimentos exclusivamente com dinheiro próprio, sem margem adicional.", "▼ A empresa financia os seus investimentos sobretudo com dívida externa, aumentando o risco financeiro.")) & IF(AND(L21>K21,L21>J21)," Este indicador tem aumentado nos últimos anos, o que é bom sinal.", IF(AND(L21<K21,L21<J21)," Este indicador tem diminuído nos últimos anos, o que é mau sinal.", IF(AND(L21>K21,L21<J21)," Este indicador subiu face ao ano anterior, mas está abaixo do nível de há dois anos.", IF(AND(L21<K21,L21>J21)," Este indicador diminuiu face ao último ano, mas está acima de há dois anos.", " Este indicador manteve-se estável.")))) -> ▼ A empresa financia os seus investimentos sobretudo com dívida externa, aumentando o risco financeiro. Este indicador diminuiu face ao último ano, mas está acima de há dois anos. | O21: ▼ A empresa apresenta pior desempenho que o setor neste indicador.
H22: 18 | I22: Rácio de Estrutura de Endividamento (REE) | J22: =Balanço!E57/Balanço!E68 -> 0.3070265631 | K22: =Balanço!F57/Balanço!F68 -> 0.3271988874 | L22: =Balanço!G57/Balanço!G68 -> 0.4978886632 | M22: 0.4 | N22: =IF(L22<=50%,"▲ A dívida é sobretudo de longo prazo, menos pressão financeira no imediato.", IF(AND(L22>50%,L22<=70%),"► Dívida equilibrada entre curto e longo prazo, situação intermédia.", "▼ A dívida é sobretudo de curto prazo, maior pressão financeira no imediato.")) & IF(AND(L22>K22,L22>J22)," Este indicador tem aumentado nos últimos anos, o que é mau sinal.", IF(AND(L22<K22,L22<J22)," Este indicador tem diminuído nos últimos anos, o que é bom sinal.", IF(AND(L22>K22,L22<J22)," Este indicador subiu face ao ano anterior, mas está abaixo do nível de há dois anos.", IF(AND(L22<K22,L22>J22)," Este indicador diminuiu face ao último ano, mas está acima de há dois anos.", " Este indicador manteve-se estável.")))) -> ▲ A dívida é sobretudo de longo prazo, menos pressão financeira no imediato. Este indicador tem aumentado nos últimos anos, o que é mau sinal. | O22: =IF(M22="","",IF(L22<M22,"▲ A empresa apresenta melhor desempenho que o setor neste indicador.", IF(L22>M22,"▼ A empresa apresenta pior desempenho que o setor neste indicador.", "► A empresa apresenta um desempenho semelhante ao setor neste indicador."))) -> ▼ A empresa apresenta pior desempenho que o setor neste indicador.
H23: 19 | I23: Rácio de Cobertura de Gastos de Financiamento (RCGF) | J23: =('Demonstração de Resultados'!E25+'Demonstração de Resultados'!K24)/'Demonstração de Resultados'!K25 -> 8.240506329 | K23: =('Demonstração de Resultados'!F25+'Demonstração de Resultados'!L24)/'Demonstração de Resultados'!L25 -> 1.060948499 | L23: =('Demonstração de Resultados'!G25+'Demonstração de Resultados'!M24)/'Demonstração de Resultados'!M25 -> 4.636870845 | M23: 15 | N23: =IF(L23>=1.5,"▲ A empresa tem boa capacidade para suportar custos financeiros.", IF(L23>=1,"► A empresa consegue suportar custos financeiros com algum esforço.", "▼ A empresa tem dificuldades em suportar custos financeiros.")) & IF(L23>K23," Este indicador melhorou face ao último ano.",IF(L23<K23," Este indicador piorou face ao último ano."," Este indicador manteve-se estável.")) -> ▲ A empresa tem boa capacidade para suportar custos financeiros. Este indicador melhorou face ao último ano. | O23: ▼ A empresa apresenta pior desempenho que o setor neste indicador.
H24: 20 | I24: Rácio de Gastos de Financiamento (RGF) | J24: ='Demonstração de Resultados'!K23/'Demonstração de Resultados'!K6 -> 0.01333031116 | K24: ='Demonstração de Resultados'!L23/'Demonstração de Resultados'!L6 -> 0.0128415879 | L24: ='Demonstração de Resultados'!M23/'Demonstração de Resultados'!M6 -> 0.02014284587 | M24: 0.02 | N24: =IF(L24<=1%,"▲ Gastos financeiros baixos face às vendas, situação positiva.", IF(L24<=3%,"► Gastos financeiros moderados face às vendas.", "▼ Gastos financeiros elevados face às vendas, situação negativa.")) & IF(L24>K24," Este indicador piorou face ao último ano.",IF(L24<K24," Este indicador melhorou face ao último ano."," Este indicador manteve-se estável.")) -> ► Gastos financeiros moderados face às vendas. Este indicador piorou face ao último ano. | O24: =IF(M24="","",IF(L24<M24,"▲ A empresa apresenta melhor desempenho que o setor neste indicador.", IF(L24>M24,"▼ A empresa apresenta pior desempenho que o setor neste indicador.", "► A empresa apresenta um desempenho semelhante ao setor neste indicador."))) -> ▼ A empresa apresenta pior desempenho que o setor neste indicador.
I25: RÁCIOS DE ATIVIDADE DE CURTO PRAZO
H26: 21 | I26: Rotação de Inventários (RI) | J26: ='Demonstração de Resultados'!E10/(Balanço!E18) -> 12.0969345 | K26: ='Demonstração de Resultados'!F10/(Balanço!F18) -> 11.33570875 | L26: ='Demonstração de Resultados'!G10/(Balanço!G18) -> 18.20340543 | M26: 20 | N26: =IF(AND(L26>K26,L26>J26),"▲ A rotação de inventários aumentou, mostrando maior eficiência na gestão dos stocks.", IF(AND(L26<K26,L26<J26),"▼ A rotação de inventários diminuiu, indicando menor eficiência na gestão dos stocks.", IF(AND(L26>K26,L26<J26),"► A rotação de inventários melhorou face ao último ano, mas piorou em relação há dois anos.", IF(AND(L26<K26,L26>J26),"► A rotação de inventários piorou face ao último ano, mas ainda melhor que há dois anos.", "► A rotação de inventários manteve-se estável.")))) -> ▲ A rotação de inventários aumentou, mostrando maior eficiência na gestão dos stocks. | O26: ▼ A empresa apresenta pior desempenho que o setor neste indicador.
H27: 22 | I27: Duração Média de Inventários (DMI) | J27: =(Balanço!E18/'Demonstração de Resultados'!E10)*365 -> 30.17293348 | K27: =(Balanço!F18/'Demonstração de Resultados'!F10)*365 -> 32.19913357 | L27: =(Balanço!G18/'Demonstração de Resultados'!G10)*365 -> 20.05119325 | M27: 15 | N27: =IF(AND(L27<K27,L27<J27),"▲ Os produtos estão menos tempo em stock, o que melhora a gestão e reduz custos.", IF(AND(L27>K27,L27>J27),"▼ Os produtos estão mais tempo em stock, aumentando custos e pressão financeira.", IF(AND(L27<K27,L27>J27),"► O tempo em stock reduziu face ao último ano, mas aumentou face a dois anos atrás.", IF(AND(L27>K27,L27<J27),"► O tempo em stock aumentou face ao último ano, mas ainda é menor do que há dois anos.", "► A duração média dos stocks manteve-se estável.")))) -> ▲ Os produtos estão menos tempo em stock, o que melhora a gestão e reduz custos. | O27: =IF(M27="","",IF(L27<M27,"▲ A empresa apresenta melhor desempenho que o setor neste indicador.", IF(L27>M27,"▼ A empresa apresenta pior desempenho que o setor neste indicador.", "► A empresa apresenta um desempenho semelhante ao setor neste indicador."))) -> ▼ A empresa apresenta pior desempenho que o setor neste indicador.
H28: 23 | I28: Prazo Médio de Recebimento (PMR) | J28: =(Balanço!E20/('Demonstração de Resultados'!E5*(1+0.23)))*365 -> 23.50875566 | K28: =(Balanço!F20/('Demonstração de Resultados'!F5*(1+0.23)))*365 -> 17.54354968 | L28: =(Balanço!G20/('Demonstração de Resultados'!G5*(1+0.23)))*365 -> 25.07378519 | M28: 20 | N28: =IF(AND(L28<K28,L28<J28),"▲ A empresa recebe mais rapidamente dos clientes, reduzindo riscos financeiros e melhorando a liquidez.", IF(AND(L28>K28,L28>J28),"▼ A empresa está a demorar mais tempo para receber, aumentando risco de problemas de tesouraria.", IF(AND(L28<K28,L28>J28),"► O prazo de recebimento diminuiu face ao último ano, mas ainda é maior que há dois anos.", IF(AND(L28>K28,L28<J28),"► O prazo de recebimento aumentou face ao último ano, mas ainda é menor do que há dois anos.", "► O prazo médio de recebimento manteve-se estável.")))) -> ▼ A empresa está a demorar mais tempo para receber, aumentando risco de problemas de tesouraria. | O28: =IF(M28="","",IF(L28<M28,"▲ A empresa apresenta melhor desempenho que o setor neste indicador.", IF(L28>M28,"▼ A empresa apresenta pior desempenho que o setor neste indicador.", "► A empresa apresenta um desempenho semelhante ao setor neste indicador."))) -> ▼ A empresa apresenta pior desempenho que o setor neste indicador.
H29: 24 | I29: Prazo Médio de Pagamento (PMP) | J29: =(Balanço!E58/('Demonstração de Resultados'!E10*(1+0.23)))*356 -> 46.73600633 | K29: =(Balanço!F58/('Demonstração de Resultados'!F10*(1+0.23)))*356 -> 41.54566707 | L29: =(Balanço!G58/('Demonstração de Resultados'!G10*(1+0.23)))*356 -> 63.94074498 | M29: 25 | N29: =IF(AND(L29>K29,L29>J29),"▲ A empresa está a conseguir prazos mais alargados para pagar fornecedores, beneficiando a tesouraria.", IF(AND(L29<K29,L29<J29),"▼ A empresa está a pagar mais rapidamente aos fornecedores, podendo pressionar a tesouraria.", IF(AND(L29>K29,L29<J29),"► O prazo de pagamento aumentou face ao último ano, mas ainda é inferior ao nível de há dois anos.", IF(AND(L29<K29,L29>J29),"► O prazo de pagamento diminuiu face ao último ano, mas ainda está acima do nível de há dois anos.", "► O prazo médio de pagamento manteve-se estável.")))) -> ▲ A empresa está a conseguir prazos mais alargados para pagar fornecedores, beneficiando a tesouraria. | O29: =IF(M29="","",IF(L29<M29,"▲ A empresa apresenta melhor desempenho que o setor neste indicador.", IF(L29>M29,"▼ A empresa apresenta pior desempenho que o setor neste indicador.", "► A empresa apresenta um desempenho semelhante ao setor neste indicador."))) -> ▼ A empresa apresenta pior desempenho que o setor neste indicador.
H30: 25 | I30: Duração do Ciclo Operacional (DCO) | J30: =J27+J28 -> 53.68168914 | K30: =K27+K28 -> 49.74268325 | L30: 45.12497844 | M30: 40 | N30: =IF(AND(L30<K30,L30<J30),"▲ O ciclo operacional encurtou, reduzindo as necessidades financeiras da operação da empresa.", IF(AND(L30>K30,L30>J30),"▼ O ciclo operacional aumentou, aumentando a pressão sobre as necessidades financeiras da empresa.", IF(AND(L30<K30,L30>J30),"► O ciclo operacional reduziu face ao último ano, mas ainda é mais longo que há dois anos.", IF(AND(L30>K30,L30<J30),"► O ciclo operacional aumentou face ao último ano, mas ainda é inferior a dois anos atrás.", "► O ciclo operacional manteve-se estável.")))) -> ▲ O ciclo operacional encurtou, reduzindo as necessidades financeiras da operação da empresa. | O30: ▲ A empresa apresenta melhor desempenho que o setor neste indicador.
H31: 26 | I31: Duração do Ciclo Financeiro (DCF) | J31: =J30-J29 -> 6.945682812 | K31: =K30-K29 -> 8.197016185 | L31: -18.81576654 | M31: 1.5 | N31: =IF(AND(L31<K31,L31<J31),"▲ A empresa precisa financiar a sua operação por menos tempo, melhorando a liquidez.", IF(AND(L31>K31,L31>J31),"▼ A empresa precisa financiar a sua operação por mais tempo, aumentando a pressão sobre a liquidez.", IF(AND(L31<K31,L31>J31),"► O ciclo financeiro reduziu face ao último ano, mas ainda está mais longo do que há dois anos.", IF(AND(L31>K31,L31<J31),"► O ciclo financeiro aumentou face ao último ano, mas ainda está mais curto do que há dois anos.", "► O ciclo financeiro manteve-se estável.")))) -> ▲ A empresa precisa financiar a sua operação por menos tempo, melhorando a liquidez. | O31: =IF(M31="","",IF(L31<M31,"▲ A empresa apresenta melhor desempenho que o setor neste indicador.", IF(L31>M31,"▼ A empresa apresenta pior desempenho que o setor neste indicador.", "► A empresa apresenta um desempenho semelhante ao setor neste indicador."))) -> ▲ A empresa apresenta melhor desempenho que o setor neste indicador.
I32: RÁCIOS DE ATIVIDADE MÉDIA E LONGO PRAZO
H33: 27 | I33: Rotação do Ativo Total (RAT) | J33: ='Demonstração de Resultados'!E5/Balanço!E30 -> 1.162810789 | K33: ='Demonstração de Resultados'!F5/Balanço!F30 -> 1.350219387 | L33: ='Demonstração de Resultados'!G5/Balanço!G30 -> 1.380951909 | M33: 1.5 | N33: =IF(AND(L33>K33,L33>J33),"▲ A empresa está mais eficiente em gerar vendas com o investimento total face aos anos anteriores.", IF(AND(L33<K33,L33<J33),"▼ A empresa está menos eficiente em gerar vendas com o investimento total face aos anos anteriores.", IF(AND(L33>K33,L33<J33),"► A eficiência em gerar vendas melhorou face ao último ano, mas piorou relativamente a dois anos atrás.", IF(AND(L33<K33,L33>J33),"► A eficiência em gerar vendas piorou face ao último ano, mas melhorou relativamente a dois anos atrás.", "► A eficiência em gerar vendas manteve-se estável.")))) -> ▲ A empresa está mais eficiente em gerar vendas com o investimento total face aos anos anteriores. | O33: ▼ A empresa apresenta pior desempenho que o setor neste indicador.
H34: 28 | I34: Rotação das Aplicações Fixas Líquidas de Exploração (RAFLE) | J34: ='Demonstração de Resultados'!E5/(Balanço!E7+Balanço!E10) -> 2.421984604 | K34: ='Demonstração de Resultados'!F5/(Balanço!F7+Balanço!F10) -> 2.664408047 | L34: ='Demonstração de Resultados'!G5/(Balanço!G7+Balanço!G10) -> 2.13457838 | M34: 2.5 | N34: =IF(AND(L34>K34,L34>J34),"▲ A empresa está a gerar mais vendas com os seus ativo fixos (máquinas, instalações, equipamentos), indicando melhor desempenho operacional.", IF(AND(L34<K34,L34<J34),"▼ A empresa está a gerar menos vendas com os seus ativo fixos (máquinas, instalações, equipamentos), indicando pior desempenho operacional.", IF(AND(L34>K34,L34<J34),"► A geração de vendas com ativo fixos (máquinas, instalações, equipamentos) aumentou face ao último ano, mas diminuiu face a dois anos atrás.", IF(AND(L34<K34,L34>J34),"► A geração de vendas com ativo fixos (máquinas, instalações, equipamentos) diminuiu face ao último ano, mas ainda é superior a dois anos atrás.", "► A geração de vendas com investimentos produtivos manteve-se estável.")))) -> ▼ A empresa está a gerar menos vendas com os seus ativo fixos (máquinas, instalações, equipamentos), indicando pior desempenho operacional. | O34: ▼ A empresa apresenta pior desempenho que o setor neste indicador.
H35: 29 | I35: Rotação do Ativo Corrente (RAC) | J35: ='Demonstração de Resultados'!E5/Balanço!E17 -> 3.878648459 | K35: ='Demonstração de Resultados'!F5/Balanço!F17 -> 3.683558835 | L35: ='Demonstração de Resultados'!G5/Balanço!G17 -> 5.470125827 | M35: 10 | N35: =IF(AND(L35>K35,L35>J35),"▲ A empresa melhorou a utilização dos seus ativos correntes para gerar vendas.", IF(AND(L35<K35,L35<J35),"▼ A empresa está a gerar menos vendas com os seus ativos correntes.", IF(AND(L35>K35,L35<J35),"► O uso dos ativos correntes melhorou face ao último ano, mas está abaixo do desempenho de dois anos atrás.", IF(AND(L35<K35,L35>J35),"► O uso dos ativos correntes piorou face ao último ano, mas ainda é melhor que há dois anos.", "► A eficiência dos ativos de curto prazo manteve-se estável.")))) -> ▲ A empresa melhorou a utilização dos seus ativos correntes para gerar vendas. | O35: ▼ A empresa apresenta pior desempenho que o setor neste indicador.
H36: 30 | I36: Rotação do Capital Próprio (RCP) | J36: ='Demonstração de Resultados'!E5/Balanço!E47 -> 3.371357492 | K36: ='Demonstração de Resultados'!F5/Balanço!F47 -> 4.032549885 | L36: ='Demonstração de Resultados'!G5/Balanço!G47 -> 3.583474714 | M36: 5 | N36: =IF(AND(L36>K36,L36>J36),"▲ A empresa melhorou a geração de vendas com o dinheiro investido pelos sócios.", IF(AND(L36<K36,L36<J36),"▼ A empresa piorou a geração de vendas com o dinheiro investido pelos sócios.", IF(AND(L36>K36,L36<J36),"► A eficiência melhorou face ao último ano, mas piorou relativamente a dois anos atrás.", IF(AND(L36<K36,L36>J36),"► A eficiência diminuiu face ao último ano, mas está acima de dois anos atrás.", "► A eficiência do capital próprio manteve-se estável.")))) -> ► A eficiência diminuiu face ao último ano, mas está acima de dois anos atrás. | O36: ▼ A empresa apresenta pior desempenho que o setor neste indicador.
H37: 31 | I37: Liquidez Geral (LG) | J37: =Balanço!E17/Balanço!E57 -> 1.490564939 | K37: =Balanço!F17/Balanço!F57 -> 1.684194991 | L37: =Balanço!G17/Balanço!G57 -> 0.824960076 | M37: 1 | N37: =IF(L37>1,"▲ A empresa tem boa capacidade para pagar as suas dívidas de curto prazo.", IF(L37=1,"► A capacidade da empresa para pagar as dívidas de curto prazo é justa, sem margem adicional.", "▼ A empresa pode ter dificuldades em cumprir os compromissos de curto prazo.")) & IF(AND(L37>K37,L37>J37)," Indicador aumentou face aos anos anteriores, melhorando a situação financeira.", IF(AND(L37<K37,L37<J37)," Indicador diminuiu face aos anos anteriores, piorando a situação financeira.", IF(AND(L37>K37,L37<J37)," Indicador subiu face ao último ano, mas está abaixo de há dois anos.", IF(AND(L37<K37,L37>J37)," Indicador diminuiu face ao último ano, mas ainda está melhor do que há dois anos.", " Indicador manteve-se estável.")))) -> ▼ A empresa pode ter dificuldades em cumprir os compromissos de curto prazo. Indicador diminuiu face aos anos anteriores, piorando a situação financeira. | O37: ▼ A empresa apresenta pior desempenho que o setor neste indicador.
H38: 32 | I38: Liquidez Reduzida (LR) | J38: =(Balanço!E17-Balanço!E18-Balanço!E19)/Balanço!E57 -> 1.24737915 | K38: =(Balanço!F17-Balanço!F18-Balanço!F19)/Balanço!F57 -> 1.379754121 | L38: =(Balanço!G17-Balanço!G18-Balanço!G19)/Balanço!G57 -> 0.6842764038 | M38: 0.5 | N38: =IF(AND(L38>=0.9,L38<=1.1),"▲ A empresa tem uma capacidade realista e confortável para pagar as dívidas de curto prazo sem vender stocks.", IF(L38>1.1,"► A empresa tem liquidez elevada, possivelmente excessiva.", "▼ A empresa pode ter dificuldades reais em pagar dívidas de curto prazo sem vender stocks.")) & IF(AND(L38>K38,L38>J38)," Indicador aumentou face aos anos anteriores.", IF(AND(L38<K38,L38<J38)," Indicador diminuiu face aos anos anteriores.", IF(AND(L38>K38,L38<J38)," Indicador subiu face ao último ano, mas está abaixo de há dois anos.", IF(AND(L38<K38,L38>J38)," Indicador diminuiu face ao último ano, mas está acima do nível de há dois anos.", " Indicador manteve-se estável.")))) -> ▼ A empresa pode ter dificuldades reais em pagar dívidas de curto prazo sem vender stocks. Indicador diminuiu face aos anos anteriores. | O38: ▲ A empresa apresenta melhor desempenho que o setor neste indicador.
H39: 33 | I39: Liquidez Imediata (LI) | J39: =Balanço!E28/Balanço!E57 -> 0.5809260338 | K39: =Balanço!F28/Balanço!F57 -> 0.8745959827 | L39: =Balanço!G28/Balanço!G57 -> 0.2190858475 | M39: 0.5 | N39: =IF(L39>=1,"▲ A empresa tem capacidade imediata suficiente para pagar todas as suas dívidas de curto prazo.", IF(AND(L39>=0.5,L39<1),"► A empresa tem alguma capacidade imediata para pagar dívidas de curto prazo, mas com margem limitada.", "▼ A empresa tem pouca capacidade imediata para pagar dívidas de curto prazo, risco elevado de problemas financeiros.")) & IF(AND(L39,L39>J39)," Indicador aumentou face aos anos anteriores.", IF(AND(L39<K39,L39<J39)," Indicador diminuiu face aos anos anteriores.", IF(AND(L39>K39,L39<J39)," Indicador subiu face ao último ano, mas está abaixo de há dois anos.", IF(AND(L39<K39,L39>J39)," Indicador diminuiu face ao último ano, mas está acima do nível de há dois anos.", " Indicador manteve-se estável.")))) -> ▼ A empresa tem pouca capacidade imediata para pagar dívidas de curto prazo, risco elevado de problemas financeiros. Indicador diminuiu face aos anos anteriores. | O39: ▼ A empresa apresenta pior desempenho que o setor neste indicador.
I40: RÁCIOS DE RENDIBILIDADE
H41: 34 | I41: Return On Assets (ROA) | J41: ='Demonstração de Resultados'!E25/Balanço!E30 -> 0.1277330366 | K41: ='Demonstração de Resultados'!F25/Balanço!F30 -> 0.0183957446 | L41: ='Demonstração de Resultados'!G25/Balanço!G30 -> 0.1289805973 | M41: 0.5 | N41: =IF(AND(L41>K41,L41>J41),"▲ A empresa melhorou a capacidade de gerar resultados operacionais com o total dos ativos investidos.", IF(AND(L41<K41,L41<J41),"▼ A empresa piorou a capacidade de gerar resultados operacionais com o total dos ativos investidos.", "► A capacidade operacional dos ativos manteve-se estável.")) -> ▲ A empresa melhorou a capacidade de gerar resultados operacionais com o total dos ativos investidos. | O41: ▼ A empresa apresenta pior desempenho que o setor neste indicador.
H42: 35 | I42: Return On Equity (ROE) | J42: ='Demonstração de Resultados'!E31/Balanço!E47 -> 0.2532009917 | K42: ='Demonstração de Resultados'!F31/Balanço!F47 -> -0.008835379893 | L42: ='Demonstração de Resultados'!G31/Balanço!G47 -> 0.2110774082 | M42: 0.5 | N42: =IF(AND(L42>K42,L42>J42),"▲ A empresa aumentou a rentabilidade para os sócios face aos anos anteriores.", IF(AND(L42<K42,L42<J42),"▼ A empresa diminuiu a rentabilidade para os sócios face aos anos anteriores.", "► A rentabilidade para os sócios manteve-se estável.")) -> ► A rentabilidade para os sócios manteve-se estável. | O42: ▼ A empresa apresenta pior desempenho que o setor neste indicador.
H43: 36 | I43: Rendibilidade Operacional das Vendas (ROV) | J43: ='Demonstração de Resultados'!E25/'Demonstração de Resultados'!E5 -> 0.1098485135 | K43: ='Demonstração de Resultados'!F25/'Demonstração de Resultados'!F5 -> 0.01362426342 | L43: ='Demonstração de Resultados'!G25/'Demonstração de Resultados'!G5 -> 0.09339977476 | M43: 0.4 | N43: =IF(AND(L43>K43,L43>J43),"▲ A empresa aumentou o lucro operacional obtido por cada euro vendido, o que indica maior eficiência operacional.", IF(AND(L43<K43,L43<J43),"▼ A empresa diminuiu o lucro operacional por cada euro vendido, indicando menor eficiência operacional.", "► O lucro operacional por euro vendido manteve-se estável.")) -> ► O lucro operacional por euro vendido manteve-se estável. | O43: ▼ A empresa apresenta pior desempenho que o setor neste indicador.
H44: 37 | I44: Rendibilidade Líquida das Vendas (RLV) | J44: ='Demonstração de Resultados'!E31/'Demonstração de Resultados'!E5 -> 0.07510357246 | K44: ='Demonstração de Resultados'!F31/'Demonstração de Resultados'!F5 -> -0.002191015646 | L44: ='Demonstração de Resultados'!G31/'Demonstração de Resultados'!G5 -> 0.05890299919 | M44: 0.2 | N44: =IF(AND(L44>K44,L44>J44),"▲ A empresa aumentou o lucro final por cada euro vendido, melhorando os resultados financeiros líquidos.", IF(AND(L44<K44,L44<J44),"▼ A empresa diminuiu o lucro final por cada euro vendido, piorando os resultados financeiros líquidos.", "► O lucro final por euro vendido manteve-se estável.")) -> ► O lucro final por euro vendido manteve-se estável. | O44: ▼ A empresa apresenta pior desempenho que o setor neste indicador.
H45: 38 | I45: Rendibilidade do Ativo (RA) | J45: =('Demonstração de Resultados'!E31+'Demonstração de Resultados'!K25*('Demonstração de Resultados'!E31/'Demonstração de Resultados'!E29))/Balanço!E30 -> 0.09939272737 | K45: =('Demonstração de Resultados'!F31+'Demonstração de Resultados'!L25*('Demonstração de Resultados'!F31/'Demonstração de Resultados'!F29))/Balanço!F30 -> -0.05149690205 | L45: =('Demonstração de Resultados'!G31+'Demonstração de Resultados'!M25*('Demonstração de Resultados'!G31/'Demonstração de Resultados'!G29))/Balanço!G30 -> 0.1037081971 | M45: 0.2 | N45: =IF(AND(L45>K45,L45>J45),"▲ A empresa aumentou a sua capacidade de gerar lucro líquido com todos os ativos investidos.", IF(AND(L45<K45,L45<J45),"▼ A empresa diminuiu a sua capacidade de gerar lucro líquido com todos os ativos investidos.", "► A capacidade de gerar lucro líquido com os ativos manteve-se estável.")) -> ▲ A empresa aumentou a sua capacidade de gerar lucro líquido com todos os ativos investidos. | O45: ▼ A empresa apresenta pior desempenho que o setor neste indicador.
H46: 39 | I46: Rendibilidade Operacional do Ativo (ROA) | J46: ='Demonstração de Resultados'!E25/Balanço!E30 -> 0.1277330366 | K46: ='Demonstração de Resultados'!F25/Balanço!F30 -> 0.0183957446 | L46: ='Demonstração de Resultados'!G25/Balanço!G30 -> 0.1289805973 | M46: 0.3 | N46: =IF(AND(L46>K46,L46>J46),"▲ A empresa aumentou o retorno operacional gerado pelos ativos investidos, indicando melhor desempenho operacional.", IF(AND(L46<K46,L46<J46),"▼ A empresa diminuiu o retorno operacional gerado pelos ativos investidos, indicando menor desempenho operacional.", "► O retorno operacional gerado pelos ativos manteve-se estável.")) -> ▲ A empresa aumentou o retorno operacional gerado pelos ativos investidos, indicando melhor desempenho operacional. | O46: ▼ A empresa apresenta pior desempenho que o setor neste indicador.
H47: 40 | I47: Rendibilidade Capital Próprio (RCP) | J47: ='Demonstração de Resultados'!E31/Balanço!E47 -> 0.2532009917 | K47: ='Demonstração de Resultados'!F31/Balanço!F47 -> -0.008835379893 | L47: ='Demonstração de Resultados'!G31/Balanço!G47 -> 0.2110774082 | M47: 0.5 | N47: =IF(AND(L47>K47,L47>J47),"▲ O retorno proporcionado aos sócios aumentou, revelando melhoria na remuneração do capital próprio.", IF(AND(L47<K47,L47<J47),"▼ O retorno proporcionado aos sócios diminuiu, revelando pior desempenho na remuneração do capital próprio.", "► O retorno proporcionado aos sócios manteve-se estável.")) -> ► O retorno proporcionado aos sócios manteve-se estável. | O47: ▼ A empresa apresenta pior desempenho que o setor neste indicador.
H48: 41 | I48: Equação Fundamental da Rendibilidade | J48: ='Demonstração de Resultados'!E31/Balanço!E30 -> 0.08733124433 | K48: ='Demonstração de Resultados'!F31/Balanço!F30 -> -0.002958351803 | L48: ='Demonstração de Resultados'!G31/Balanço!G30 -> 0.08134220919 | M48: 0.4 | N48: =IF(AND(L48>K48,L48>J48),"▲ A empresa melhorou a combinação entre margem de lucro e volume de vendas, aumentando a rentabilidade económica.", IF(AND(L48<K48,L48<J48),"▼ A empresa piorou a combinação entre margem de lucro e volume de vendas, diminuindo a rentabilidade económica.", "► A combinação entre margem de lucro e vendas manteve-se estável.")) -> ► A combinação entre margem de lucro e vendas manteve-se estável. | O48: ▼ A empresa apresenta pior desempenho que o setor neste indicador.
H49: 42 | I49: ANÁLISE DUPONT | J49: =J50*J51*J52 -> 0.02164267599 | K49: =K50*K51*K52 -> 0.0003369783439 | L49: 0.01585171598 | M49: =M50*M51*M52 -> 0 | N49: =IF(AND(L49>K49,L49>J49),"▲ O retorno para os sócios aumentou devido à melhoria combinada na margem de lucro, utilização dos ativos ou maior uso de endividamento.", IF(AND(L49<K49,L49<J49),"▼ O retorno para os sócios diminuiu devido à pioria combinada na margem de lucro, utilização dos ativos ou redução do endividamento.", "► O retorno para os sócios manteve-se estável face aos anos anteriores.")) -> ► O retorno para os sócios manteve-se estável face aos anos anteriores. | O49: ▲ A empresa apresenta melhor desempenho que o setor neste indicador.
H50: 43 | I50: Rendibilidade Líquida das Vendas (RLV) | J50: =J44 -> 0.07510357246 | K50: =K44 -> -0.002191015646 | L50: 0.05890299919 | N50: =IF(AND(L50>K50,L50>J50),"▲ A empresa aumentou o lucro final por cada euro vendido, indicando maior eficiência na gestão das vendas.", IF(AND(L50<K50,L50<J50),"▼ A empresa diminuiu o lucro final por cada euro vendido, indicando menor eficiência na gestão das vendas.", "► O lucro final por euro vendido manteve-se estável face aos anos anteriores.")) -> ► O lucro final por euro vendido manteve-se estável face aos anos anteriores. | O50: =IF(M50="","",IF(L50>M50,"▲ A empresa apresenta melhor desempenho que o setor neste indicador.", IF(L50<M50,"▼ A empresa apresenta pior desempenho que o setor neste indicador.", "► A empresa apresenta um desempenho semelhante ao setor neste indicador."))) -> 
H51: 44 | I51: Rotação do Ativo (RA) | J51: =J45 -> 0.09939272737 | K51: =K45 -> -0.05149690205 | L51: 0.1037081971 | M51: 0.4 | N51: =IF(AND(L51>K51,L51>J51),"▲ A empresa está a utilizar melhor os ativos totais para gerar vendas, aumentando a eficiência operacional.", IF(AND(L51<K51,L51<J51),"▼ A empresa está a utilizar pior os ativos totais para gerar vendas, reduzindo a eficiência operacional.", "► A eficiência dos ativos para gerar vendas manteve-se estável.")) -> ▲ A empresa está a utilizar melhor os ativos totais para gerar vendas, aumentando a eficiência operacional. | O51: =IF(M51="","",IF(L51>M51,"▲ A empresa apresenta melhor desempenho que o setor neste indicador.", IF(L51<M51,"▼ A empresa apresenta pior desempenho que o setor neste indicador.", "► A empresa apresenta um desempenho semelhante ao setor neste indicador."))) -> ▼ A empresa apresenta pior desempenho que o setor neste indicador.
H52: 45 | I52: Leverage Financeiro (LF) | J52: =Balanço!E30/Balanço!E47 -> 2.899317348 | K52: =Balanço!F30/Balanço!F47 -> 2.986588642 | L52: =Balanço!G30/Balanço!G47 -> 2.594930852 | M52: 2 | N52: =IF(AND(L52>K52,L52>J52),"▲ A empresa aumentou o uso de dívida relativamente ao capital próprio, o que pode amplificar os retornos para os sócios, mas também aumenta o risco financeiro.", IF(AND(L52<K52,L52<J52),"▼ A empresa reduziu o uso de dívida relativamente ao capital próprio, diminuindo potencialmente os retornos mas reduzindo também o risco financeiro.", "► O nível de endividamento manteve-se estável.")) -> ▼ A empresa reduziu o uso de dívida relativamente ao capital próprio, diminuindo potencialmente os retornos mas reduzindo também o risco financeiro. | O52: ▲ A empresa apresenta melhor desempenho que o setor neste indicador.
H53: 46 | I53: Taxa Média de Juros de Capital Alheio | J53: ='Demonstração de Resultados'!K23/(Balanço!E52+Balanço!E61) -> 0.03345997509 | K53: ='Demonstração de Resultados'!L23/(Balanço!F52+Balanço!F61) -> 0.0361725938 | L53: ='Demonstração de Resultados'!M23/(Balanço!G52+Balanço!G61) -> 0.09504896872 | M53: 5 | N53: Taxas de juros sobre capitais alheios (para cálculos auxiliares) | O53: =IF(M53="","",IF(L53<M53,"▲ A empresa apresenta melhor desempenho que o setor neste indicador.", IF(L53>M53,"▼ A empresa apresenta pior desempenho que o setor neste indicador.", "► A empresa apresenta um desempenho semelhante ao setor neste indicador."))) -> ▲ A empresa apresenta melhor desempenho que o setor neste indicador.
H54: 47 | I54: Efeito da Alavanca Financeira | J54: ='Demonstração de Resultados'!E25/Balanço!E30 -> 0.1277330366 | K54: ='Demonstração de Resultados'!F25/Balanço!F30 -> 0.0183957446 | L54: ='Demonstração de Resultados'!G25/Balanço!G30 -> 0.1289805973 | M54: 0.4 | N54: =IF(L54>L53,"▲ A empresa está a ganhar mais com os ativos do que paga em juros: o efeito da alavanca financeira é positivo.", IF(L54<L53,"▼ A empresa paga mais em juros do que consegue gerar com os ativos: o efeito da alavanca financeira é negativo.", "► A rentabilidade dos ativos é igual ao custo da dívida: o efeito da alavanca é neutro.")) & IF(L54>K54," A rentabilidade operacional dos ativos aumentou face ao ano anterior.", IF(L54<K54," A rentabilidade operacional dos ativos diminuiu face ao ano anterior.", " A rentabilidade operacional manteve-se estável face ao ano anterior.")) & IF(L54>J54," Também aumentou face a há dois anos.", IF(L54<J54," Também diminuiu face a há dois anos.", " Também se manteve face a há dois anos.")) -> ▲ A empresa está a ganhar mais com os ativos do que paga em juros: o efeito da alavanca financeira é positivo. A rentabilidade operacional dos ativos aumentou face ao ano anterior. Também aumentou face a há dois anos. | O54: ▼ A empresa apresenta pior desempenho que o setor neste indicador.
I55: GRAUS DE ALAVANCA
H56: 48 | I56: Grau de Alavanca Operacional (GAO) | J56: =('Demonstração de Resultados'!E5-'Demonstração de Resultados'!E10)/'Demonstração de Resultados'!E25 -> 4.471238279 | K56: =('Demonstração de Resultados'!F5-'Demonstração de Resultados'!F10)/'Demonstração de Resultados'!F25 -> 32.56853501 | L56: =('Demonstração de Resultados'!G5-'Demonstração de Resultados'!G10)/'Demonstração de Resultados'!G25 -> 4.630629016 | M56: 2 | N56: =IF(AND(L56>K56,L56>J56),"▼ O risco económico aumentou, indicando que pequenas variações nas vendas têm maior impacto no lucro operacional.", IF(AND(L56<K56,L56<J56),"▲ O risco económico diminuiu, indicando menor sensibilidade do lucro operacional face às variações das vendas.", "► O risco económico manteve-se estável.")) -> ► O risco económico manteve-se estável. | O56: =IF(M56="","",IF(L56<M56,"▲ A empresa apresenta melhor desempenho que o setor neste indicador.", IF(L56>M56,"▼ A empresa apresenta pior desempenho que o setor neste indicador.", "► A empresa apresenta um desempenho semelhante ao setor neste indicador."))) -> ▼ A empresa apresenta pior desempenho que o setor neste indicador.
H57: 49 | I57: Grau de Alavanca Financeira (GAF) | J57: ='Demonstração de Resultados'!E25/'Demonstração de Resultados'!E29 -> 1.138111888 | K57: ='Demonstração de Resultados'!F25/'Demonstração de Resultados'!F29 -> 17.40729483 | L57: ='Demonstração de Resultados'!G25/'Demonstração de Resultados'!G29 -> 1.274961648 | M57: 1.1 | N57: =IF(AND(L57>K57,L57>J57),"▼ O risco financeiro aumentou, sugerindo maior impacto dos resultados operacionais sobre o lucro líquido.", IF(AND(L57<K57,L57<J57),"▲ O risco financeiro diminuiu, indicando menor impacto dos resultados operacionais sobre o lucro líquido.", "► O risco financeiro manteve-se estável.")) -> ► O risco financeiro manteve-se estável. | O57: ▲ A empresa apresenta melhor desempenho que o setor neste indicador.
H58: 50 | I58: Grau Combinado de Alavanca (GCA) | J58: =J56*J57 -> 5.08876944 | K58: =K56*K57 -> 566.9300912 | L58: 5.9038744 | M58: 2 | N58: =IF(AND(L58>K58,L58>J58),"▼ O risco global da empresa aumentou, indicando maior sensibilidade dos resultados líquidos a alterações nas vendas.", IF(AND(L58<K58,L58<J58),"▲ O risco global da empresa diminuiu, sugerindo maior estabilidade dos resultados líquidos face às variações das vendas.", "► O risco global da empresa manteve-se estável.")) -> ► O risco global da empresa manteve-se estável. | O58: ▲ A empresa apresenta melhor desempenho que o setor neste indicador.
H59: 51 | I59: Margem de Segurança | J59: =('Demonstração de Resultados'!E5 / ((('Demonstração de Resultados'!E11/2) + 'Demonstração de Resultados'!E12 + 'Demonstração de Resultados'!E22) / (1 - ('Demonstração de Resultados'!E10 + ('Demonstração de Resultados'!E11/2)) / 'Demonstração de Resultados'!E5)) - 1) -> 0.3327819712 | K59: =('Demonstração de Resultados'!F5 / ((('Demonstração de Resultados'!F11/2) + 'Demonstração de Resultados'!F12 + 'Demonstração de Resultados'!F22) / (1 - ('Demonstração de Resultados'!F10 + ('Demonstração de Resultados'!F11/2)) / 'Demonstração de Resultados'!F5)) - 1) -> 0.003039071057 | L59: =('Demonstração de Resultados'!G5 / ((('Demonstração de Resultados'!G11/2) + 'Demonstração de Resultados'!G12 + 'Demonstração de Resultados'!G22) / (1 - ('Demonstração de Resultados'!G10 + ('Demonstração de Resultados'!G11/2)) / 'Demonstração de Resultados'!G5)) - 1) -> 0.3505369538 | M59: 1 | N59: =IF(AND(L59>K59,L59>J59),"▲ A empresa aumentou a margem de segurança, ficando mais longe de prejuízos e aumentando a estabilidade financeira.", IF(AND(L59<K59,L59<J59),"▼ A empresa diminuiu a margem de segurança, ficando mais perto de prejuízos e reduzindo a estabilidade financeira.", "► A margem de segurança manteve-se estável.")) -> ▲ A empresa aumentou a margem de segurança, ficando mais longe de prejuízos e aumentando a estabilidade financeira. | O59: ▼ A empresa apresenta pior desempenho que o setor neste indicador.

Sheet Investimento Imobiliário
B2: A empresa tem capacidade para investir?
B3: Indicador | C3: Atual N+2 | D3: Recomendado | E3: Comentário | H3: Comentário Pessoal
B4: Liquidez Geral | C4: =Performance!L37 -> 0.824960076 | D4: 1.5 | E4: =IF(C4>D4,"▲ A liquidez é adequada para suportar um investimento.","▼ A liquidez é inferior ao ideal para realizar um investimento.") -> ▼ A liquidez é inferior ao ideal para realizar um investimento.
B5: Autonomia Financeira | C5: =Performance!L10 -> 0.3853667235 | D5: 0.33 | E5: =IF(C5>D5,"▲ A empresa tem boa autonomia e reduzida dependência externa.","▼ A autonomia é fraca e pode limitar acesso a financiamento.") -> ▲ A empresa tem boa autonomia e reduzida dependência externa.
B6: Rentabilidade do Capital Próprio (ROE) | C6: =Performance!L42 -> 0.2110774082 | D6: 0.05 | E6: =IF(C6>D6,"▲ A empresa está a rentabilizar bem o capital dos sócios.","▼ A rentabilidade está abaixo do esperado para novos investimentos.") -> ▲ A empresa está a rentabilizar bem o capital dos sócios.
B7: Rácio de Cobertura de Gastos de Financiamento | C7: =Performance!L23 -> 4.636870845 | D7: 2 | E7: =IF(C7>D7,"▲ A cobertura de juros é boa, há margem para financiar.","▼ A margem para suportar encargos financeiros é reduzida.") -> ▲ A cobertura de juros é boa, há margem para financiar.
B8: Rácio de Endividamento | C8: =Performance!L11 -> 0.6146332765 | D8: 0.66 | E8: =IF(C8<D8,"▲ O nível de endividamento está dentro dos limites saudáveis.","▼ O endividamento é elevado, o que aumenta o risco do investimento.") -> ▲ O nível de endividamento está dentro dos limites saudáveis.
B9: Comentário | C9: =IF(COUNTIF(E4:E8,"▲*")=5,"✅ A empresa tem condições financeiras sólidas e está preparada para investir.", IF(COUNTIF(E4:E8,"▼*")=5,"❌ A empresa não está financeiramente preparada para investir neste momento.", IF(AND(COUNTIF(E4,"▼*")=1,COUNTIF(E5,"▲*")=1,COUNTIF(E6,"▲*")=1,COUNTIF(E7,"▲*")=1,COUNTIF(E8,"▲*")=1),"⚠️ Boa estrutura e rentabilidade, mas sem liquidez. O investimento só deve avançar após reforço de tesouraria.", IF(AND(COUNTIF(E4,"▼*")=1,COUNTIF(E5,"▲*")=1,COUNTIF(E6,"▲*")=1,COUNTIF(E7,"▲*")=1,COUNTIF(E8,"▲*")=1),"⚠️ Falta liquidez para efetuar o investimento, mas a estrutura permite considerar recurso a capitais alheios (financiamento).", IF(AND(COUNTIF(E4,"▼*")=1,COUNTIF(E5,"▼*")=1,COUNTIF(E6,"▲*")=1,COUNTIF(E7,"▼*")=1,COUNTIF(E8,"▼*")=1),"⚠️ Apesar da empresa apresentar uma rentabilidade, ao nível de liquidez e de endividamento, o risco financeiro desaconselha o investimento.", IF(AND(COUNTIF(E4,"▲*")=1,COUNTIF(E5,"▲*")=1,COUNTIF(E6,"▼*")=1,COUNTIF(E7,"▲*")=1,COUNTIF(E8,"▲*")=1),"⚠️ A empresa pode investir pois tem boa estrutura e liquidez, mas deve melhorar a rentabilidade da sua empresa primeiro antes de investir.", "⚠️ A empresa apresenta indicadores mistos. Recomenda-se uma análise mais detalhada antes de investir." )))))) -> ⚠️ Boa estrutura e rentabilidade, mas sem liquidez. O investimento só deve avançar após reforço de tesouraria.
H10: FINANCIAMENTO | K10: Alterações ao BALANÇO | L10: Arrendamento | M10: =IF(AND(C13=G68, G68=L10), "", "⚠️ Valores incompatíveis entre C13 e G68") -> 
B11: DADOS CONTABILÍSTICOS | H11: Ano | I11: Juros pagos | J11: Dívida paga | K11: Alterações ao Ativo Corrente | L11: =L12+L13+L14+L15+L16 -> -71910
B12: Empresa tem atividade no setor imobiliário? | C12: Não | D12: EBOOK LINK | E12: INVESTIMENTO COM RECURSO A FINANCIAMENTO? | G12: Sim | H12: 1 | I12: =IF(G12="Não", 0, -CUMIPMT($F$16/12, $F$14*12, $F$13, (1+(12*(H12-1))), (12*H12), 0)) -> 2736.720832 | J12: =($F$18*12)-I12 -> 3476.657743 | K12: Capitais próprios | L12: =IF(F15=0, IF(L10="Revenda", -C29, IF(L10="Arrendamento", -F29, IF(L10="Uso próprio (ex escritório)", -I29, ""))), -F15) -> -65000
B13: Intenção de uso do investimento | C13: Arrendamento | D13: =IF(AND(C13<>G68, C13<>L10), "⚠️ Incompatível com G68 e L10", IF(C13<>G68, "⚠️ Incompatível com G68", IF(C13<>L10, "⚠️ Incompatível com L10", "")) ) ->  | E13: Financiamento | F13: 70000 | G13: Atenção na escolha da intenção de uso do investimento (C13) pois, dependendo dessa escolha, o excel vai recolher o valor de aquisição apropriado | H13: 2 | I13: =IF(G12="Não", 0, -CUMIPMT($F$16/12, $F$14*12, $F$13, (1+(12*(H13-1))), (12*H13), 0)) -> 2595.076431 | J13: =($F$18*12)-I13 -> 3618.302144 | K13: Inventário (C14 = inventário) | L13: =IF(C14="Inventário", IF(L10="Revenda", C26, IF(L10="Arrendamento", F26, 0)), 0) -> 0
B14: Rubrica | C14: =IF(C13="Uso próprio (ex escritório)","Ativo fixo tangível", IF(AND(C12="Sim",C13="Revenda"),"Inventário", IF(C13="Arrendamento","Propriedade de investimento", IF(AND(C12="Não",C13="Revenda"),"Classificação inválida (revenda sem CAE imobiliário)", "—")))) -> Propriedade de investimento | E14: Maturidade | F14: 15 | H14: 3 | I14: =IF(G12="Não", 0, -CUMIPMT($F$16/12, $F$14*12, $F$13, (1+(12*(H14-1))), (12*H14), 0)) -> 2447.661219 | J14: 3765.717356 | K14: Impostos + escritura | L14: =-IF(L10="Revenda", C45, IF(L10="Arrendamento", F47, IF(L10="Uso próprio (ex escritório)", I30, ""))) -> -4280
B15: Comentário | C15: =IF(C14="Ativo fixo tangível","Sujeito a depreciação. Uso próprio e não gera rendimento direto.", IF(C14="Propriedade de investimento","Sujeito a depreciação. Arrendamento ou valorização futura.", IF(C14="Inventário","Sem depreciação. Reconhecido como custo na venda. Requer atividade no setor.", IF(C14="Classificação inválida (revenda sem CAE imobiliário)","Classificação excecional. Pode ser aceite como AFT se for pontual. Não usar esta opção de forma recorrente. Ver eBook.", "")))) -> Sujeito a depreciação. Arrendamento ou valorização futura. | E15: Capitais próprios | F15: =IF(C13="Revenda",C29-F13,IF(C13="Arrendamento",F29-F13,IF(C13="Uso próprio (ex escritório)",MIN(C26,F26)-F13,""))) -> 65000 | H15: 4 | I15: =IF(G12="Não", 0, -CUMIPMT($F$16/12, $F$14*12, $F$13, (1+(12*(H15-1))), (12*H15), 0)) -> 2294.240084 | J15: 3919.138491 | K15: Comissões bancárias | L15: =-IF(L10="Revenda", C43, IF(L10="Arrendamento", F45, IF(L10="Uso próprio (ex escritório)", I35, ""))) -> -1000
E16: Taxa de juro | F16: 0.04 | H16: 3 | I16: =IF(G12="Não", 0, -CUMIPMT($F$16/12, $F$14*12, $F$13, (1+(12*(H16-1))), (12*H16), 0)) -> 2447.661219 | J16: 3765.717356 | K16: Despesas de gestão | L16: =-IF(L10="Revenda", C44, IF(L10="Arrendamento", F46, IF(L10="Uso próprio (ex escritório)", I34, ""))) -> -1630
B17: Tipo de imóvel | C17: Habitacional ou comercial | D17: Terreno não tem depreciação | E17: Loan do Value | F17: =1-(F15/IF(C13="Arrendamento",F26,IF(C13="Revenda",C26,IF(C13="Uso próprio (ex escritório)",MIN(C26,F26),"")))) -> 0.4583333333 | H17: 5 | I17: =IF(G12="Não", 0, -CUMIPMT($F$16/12, $F$14*12, $F$13, (1+(12*(H17-1))), (12*H17), 0)) -> 2134.568335 | J17: 4078.81024 | K17: Alterações ao Passivo Corrente | L17: =L18+L19 -> 6213.378575
B18: Modelo contabilístico escolhido | C18: Modelo do custo | E18: Prestação mensal | F18: =-PMT(F16/12,F14*12,F13) -> 517.7815479 | H18: 6 | I18: =IF(G12="Não", 0, -CUMIPMT($F$16/12, $F$14*12, $F$13, (1+(12*(H18-1))), (12*H18), 0)) -> 1968.391313 | J18: 4244.987262 | K18: Juros do 1º ano | L18: =I12 -> 2736.720832
B19: Vida util estimada - editável | C19: =IF(C17="Industrial",20,50) -> 50 | D19: Atenção aos valores de vida útil | E19: I.S sobre o crédito | F19: =0.006*F13 -> 420 | H19: 7 | I19: =IF(G12="Não", 0, -CUMIPMT($F$16/12, $F$14*12, $F$13, (1+(12*(H19-1))), (12*H19), 0)) -> 1795.443982 | J19: 4417.934593 | K19: Amortização do 1º ano | L19: =J12 -> 3476.657743
B20: Método de depreciação | C20: =IF(C18="Modelo do custo","Linear","—") -> Linear | E20: Total de comissões bancárias | F20: 1000 | H20: 8 | I20: =IF(G12="Não", 0, -CUMIPMT($F$16/12, $F$14*12, $F$13, (1+(12*(H20-1))), (12*H20), 0)) -> 1615.45051 | J20: 4597.928065 | K20: Alterações ao Ativo Não Corrente | L20: =L21+L22-L23 -> 122394.4
B21: Taxa de depreciação anual | C21: =IF(C17="Terreno", 0, IF(AND(OR(C14="Ativo fixo tangível", C14="Propriedade de investimento", C14="Classificação inválida (revenda sem CAE imobiliário)"), C18="Modelo do custo"), 1/C19, "")) -> 0.02 | E21: Amortização antecipada | F21: =0.005*(F13-J13) -> 331.9084893 | H21: 9 | I21: =IF(G12="Não", 0, -CUMIPMT($F$16/12, $F$14*12, $F$13, (1+(12*(H21-1))), (12*H21), 0)) -> 1428.123826 | J21: 4785.254749 | K21: Valor do aquisição (modelo de custo) | L21: =IF(C14<>"Inventário", IF(L10="Revenda", C26, IF(L10="Arrendamento", F26, IF(L10="Uso próprio (ex escritório)", I26, 0))), 0) -> 120000
B22: INVESTIMENTO IMOBILIÁRIO | K22: IMT, IS e escritura | L22: =IF(L10="Revenda", C45, IF(L10="Arrendamento", F47, IF(L10="Uso próprio (ex escritório)", I30, 0))) -> 4280
B23: REVENDA NO MESMO ANO DA COMPRA | E23: ARRENDAMENTO NO PRIMEIRO ANO | H23: PARA USO PRÓPRIO | K23: Depreciação | L23: =IF(L10="Revenda", C56, IF(L10="Arrendamento", F56, IF(L10="Uso próprio (ex escritório)", J46, 0))) -> 1885.6
B24: DADOS DO IMÓVEL | E24: DADOS DO IMÓVEL | H24: DADOS DO IMÓVEL | K24: Alterações ao Passivo Não Corrente | L24: =L25 -> 66523.34226
B25: Tipo de Propriedade | C25: Habitação | E25: Tipo de Propriedade | F25: Habitação | H25: Tipo de Propriedade | I25: Escritório | J25: Indicar o valor do IMT pago na compra. Pode variar consoante: • Existência de isenção; • Tipo de imóvel (habitacional, comercial ou industrial). Para simulações, podes usar um simulador online de IMT. | K25: Financiamento não corrente | L25: =F13-J12 -> 66523.34226
B26: Valor de Aquisião | C26: 120000 | E26: Valor de Aquisião | F26: 120000 | H26: Valor de Aquisião | I26: 120000 | K26: Alterações ao Capital Próprio | L26: =L27 -> 2852.548507
B27: Valor Patrimonial | C27: 75000 | E27: Valor Patrimonial | F27: 75000 | H27: Valor Patrimonial | I27: 75000 | K27: Lucro (soma ao RLP) | L27: =IF(L10="Revenda", C64, IF(L10="Arrendamento", F64, IF(L10="Uso próprio (ex escritório)", J54, ""))) -> 2852.548507
B28: Obras | C28: 15000 | E28: Obras | F28: 15000 | H28: Obras | I28: 15000 | K28: Alterações aos Encargos Financeiros | L28: =L29+L30+L31 -> 3736.720832
B29: Investido | C29: =C26+C28 -> 135000 | E29: Investido | F29: =F26+F28 -> 135000 | H29: Investido | I29: =I26+I28 -> 135000 | K29: Juros do financiamento | L29: =I12 -> 2736.720832
B30: PVP | C30: 170000 | E30: OUTRAS COMISSÕES | H30: OUTRAS COMISSÕES | I30: =SUM(I31:I33) -> 3860 | K30: Comissões bancárias | L30: =F20 -> 1000
B31: Lucro Bruto | C31: =C30-C29 -> 35000 | E31: IMT | F31: 2000 | G31: Indicar o valor do IMT pago na compra. Pode variar consoante: • Existência de isenção; • Tipo de imóvel (habitacional, comercial ou industrial). Para simulações, podes usar um simulador online de IMT. | H31: IMT | I31: 2000 | K31: Amortização antecipada | L31: =IF(L10="Revenda", F21, IF(OR(L10="Arrendamento", L10="Uso próprio (ex escritório)"), 0)) -> 0
B32: OUTRAS COMISSÕES | E32: IS | F32: =0.008*MAX(F26:F27) -> 960 | H32: IS | I32: =0.008*MAX(I26:I27) -> 960
B33: Comissão imobiliária | C33: =0.05*C30+(0.23*0.05*C30) -> 10455 | E33: Escritura | F33: 900 | H33: Escritura | I33: 900
B34: IMT | C34: 2000 | D34: Indicar o valor do IMT pago na compra. Pode variar consoante: • Existência de isenção; • Tipo de imóvel (habitacional, comercial ou industrial). Para simulações, podes usar um simulador online de IMT. | E34: RENDA | H34: OUTRAS DESPESAS DE GESTÃO | I34: =SUM(I36:I40) -> 3230
B35: IS | C35: =0.008*MAX(C26:C27) -> 960 | E35: Renda mensal | F35: 900 | H35: Comissões bancárias | I35: =F20 -> 1000
B36: Escritura | C36: 900 | E36: Renda anual | F36: =F35*12 -> 10800 | H36: IMI anual | I36: 250
B37: OUTRAS DESPESAS DE GESTÃO | E37: Rentabilidade bruta | F37: =F36/F29 -> 0.08 | H37: Condomínio | I37: =40*12 -> 480
B38: IMI anual | C38: 250 | E38: OUTRAS DESPESAS DE GESTÃO | G38: Não está contabilizado os períodos de desocupação que possam ser estimados. Isso vai variar em função da localização, do imóvel, entre outros fatores. | H38: Luz e água | I38: 1500
B39: Condomínio | C39: =49*12 -> 588 | E39: IMI anual | F39: 250 | H39: Custos de manuntenção | I39: 1000
B40: Luz e água | C40: 100 | E40: Condomínio | F40: =40*12 -> 480 | H40: Custos de gestão | I40: 0
B41: RESUMO DE 1 ANO | E41: Luz e água | F41: 0 | H41: TRIBUTAÇÃO (Demonstração de Resultados)
B42: Lucro bruto | C42: =C31 -> 35000 | E42: Custos de manuntenção | F42: =F35 -> 900 | H42: Resultado antes de impostos antes do investimento (N+2) | J42: ='Demonstração de Resultados'!G29 -> 30637
B43: Comissões bancárias + amortização antecipada | C43: =F20+F21 -> 1331.908489 | E43: Custos de gestão | F43: 0 | H43: Imposto sobre o rendimento do período antes do investimento (N+2) | J43: ='Demonstração de Resultados'!G30 -> 6003
B44: Despesas de gestão | C44: =C38+C39+C40 -> 938 | E44: ANÁLISE CASH ON CASH | H44: EBITDA sem investimento | J44: ='Demonstração de Resultados'!G21 -> 53703
B45: Impostos + escritura | C45: =C34+C35+C36+F19 -> 4280 | E45: Comissões bancárias | F45: =F20 -> 1000 | H45: EBITDA COM INVESTIMENTO | J45: =J44-I34 -> 50473
B46: Comissão imobiliária | C46: =C33 -> 10455 | E46: Despesas de gestão | F46: =F39+F40+F41+F42+F43 -> 1630 | H46: Depreciação anual esperada | J46: =IF(ISNUMBER(C21), (0.75*I26+I30) * C21, 0) -> 1877.2
B47: Lucro líquido antes de impostos | C47: =C42-C43-C44-C45-C46 -> 17995.09151 | E47: Impostos + escritura | F47: =F31+F32+F33+F19 -> 4280 | H47: RESULTADO OPERACIONAL COM INVESTIMENTO | J47: =J45-J46-'Demonstração de Resultados'!G22+'Demonstração de Resultados'!G23 -> 33953.8
B48: ANÁLISE DE INVESTIMENTO | E48: Capitais próprios usados | F48: =F15+F45+F46+F47 -> 71910 | G48: Capitais próprios em função do financiamento. O valor das obras não está incluído no financiamento, apenas a aquisição, | H48: Encargos financeiros e bancários | J48: =I12+I35 -> 3736.720832
B49: Capitais próprios usados | C49: =F15+C43+C44+C45+C46 -> 82004.90849 | D49: Capitais próprios em função do financiamento. O valor das obras não está incluído no financiamento, apenas a aquisição, | E49: RETORNO CASH ON CASH | F49: =F36/F48 -> 0.1501877347 | H49: RESULTADO ANTES DE IMPOSTOS COM INVESTIMENTO | J49: =J47-J48-'Demonstração de Resultados'!G27+'Demonstração de Resultados'!G26 -> 21793.07917
B50: Rentabilidade | C50: =C47/C49 -> 0.2194391999 | E50: Cashflow líquido anual antes de impostos | F50: =F36-(F39+F40+F41+F42+F43)-(F18*12) -> 2956.621425 | H50: Taxa efetiva de IRC | J50: =J43/J42 -> 0.1959395502
B51: TRIBUTAÇÃO (Demonstração de Resultados) | E51: TRIBUTAÇÃO (Demonstração de Resultados) | H51: IMPOSTOS SOBRE O RENDIMENTO DO PERÍODO COM INVESTIMENTO | J51: =J49*J50 -> 4270.12613
B52: Resultado antes de impostos antes do investimento (N+2) | C52: ='Demonstração de Resultados'!G29 -> 30637 | E52: Resultado antes de impostos antes do investimento (N+2) | F52: ='Demonstração de Resultados'!G29 -> 30637 | H52: Resultado líquido do período sem investimento | J52: ='Demonstração de Resultados'!G31 -> 24634
B53: Imposto sobre o rendimento do período antes do investimento (N+2) | C53: ='Demonstração de Resultados'!G30 -> 6003 | E53: Imposto sobre o rendimento do período antes do investimento (N+2) | F53: ='Demonstração de Resultados'!G30 -> 6003 | H53: RESULTADO LÍQUIDO DO PERÍODO COM INVESTIMENTO | J53: =J49-J51 -> 17522.95304
B54: EBITDA sem investimento | C54: ='Demonstração de Resultados'!G21 -> 53703 | E54: EBITDA sem investimento | F54: ='Demonstração de Resultados'!G21 -> 53703 | H54: PREJUIZO FINAL DEPOIS DE IMPOSTOS | J54: =(-I34-I35-I30)-(J51-'Demonstração de Resultados'!G30) -> -6357.12613
B55: EBITDA COM INVESTIMENTO | C55: =C54+C42-C44-C46 -> 77310 | E55: EBITDA COM INVESTIMENTO | F55: =F54+F36-F46 -> 62873 | H55: Compensa comprar imóvel para uso próprio?
B56: Depreciação anual contabilística | C56: =IF(ISNUMBER(C21), (0.75*C26+C45) * C21, 0) -> 1885.6 | E56: Depreciação anual esperada | F56: =IF(ISNUMBER(C21), (0.75*F26+F47) * C21, 0) -> 1885.6 | H56: Renda mensal atual sem investimento | I56: 1000
B57: RESULTADO OPERACIONAL COM INVESTIMENTO | C57: =C55-C56-'Demonstração de Resultados'!G22+'Demonstração de Resultados'!G23 -> 60782.4 | D57: Contabilizado as depreciações e imparidades do período N+2 | E57: RESULTADO OPERACIONAL COM INVESTIMENTO | F57: =F55-F56-'Demonstração de Resultados'!G22+'Demonstração de Resultados'!G23 -> 46345.4 | G57: Contabilizado as depreciações e imparidades do período N+2 | H57: Rácio Preço/Renda | I57: =I26/(I56*12) -> 10
B58: Encargos financeiros e bancários | C58: =I12+C43 -> 4068.629321 | E58: Encargos financeiros e bancários | F58: =I12+F45 -> 3736.720832 | H58: Decisão | I58: =IF(I57<17.5,"O rácio indica que poderá ser considerada a hipótese em comprar o imóvel para a operação da empresa","⚠️ O rácio indica que poderá não compensar comprar o imóvel para uso próprio") -> O rácio indica que poderá ser considerada a hipótese em comprar o imóvel para a operação da empresa
B59: RESULTADO ANTES DE IMPOSTOS COM INVESTIMENTO | C59: =C57-C58+'Demonstração de Resultados'!G26-'Demonstração de Resultados'!G27 -> 48289.77068 | D59: Contabilizado os juros e rendimentos similares e os juros e gastos financeiros do período N+2 (folha Demonstração de Resultados) | E59: RESULTADO ANTES DE IMPOSTOS COM INVESTIMENTO | F59: =F57-F58-'Demonstração de Resultados'!G27+'Demonstração de Resultados'!G26 -> 34184.67917 | G59: Contabilizado os juros e rendimentos similares e os juros e gastos financeiros do período N+2 (folha Demonstração de Resultados)
B60: Taxa efetiva de IRC | C60: =C53/C52 -> 0.1959395502 | E60: Taxa efetiva de IRC | F60: =F53/F52 -> 0.1959395502 | H60: Fluxo de caixa depois da compra | I60: =I56*12+J54 -> 5642.87387
B61: IMPOSTOS SOBRE O RENDIMENTO DO PERÍODO COM INVESTIMENTO | C61: =C59*C60 -> 9461.875947 | E61: IMPOSTOS SOBRE O RENDIMENTO DO PERÍODO COM INVESTIMENTO | F61: =F59*F60 -> 6698.13066 | H61: Comentário pessoal | I61: Para o cenário de uso próprio, terá de verificar com o contabilista a forma como o teu balanço irá alterar relativamente ao pagamento de uma renda do espaço onde opera a tua empresa. Tendo em conta que, neste cenário, estás a considerar comprar o imóvel onde operas, o teu balanço e demonstração de resultados vai alterar fruto desta alteração, pois acabas por ter outras responsabildiade. Trocas a tua responsabilidade com o senhorio com a responsabilidade de ser proprietário.
B62: Resultado líquido do período sem investimento | C62: ='Demonstração de Resultados'!G31 -> 24634 | E62: Resultado líquido do período sem investimento | F62: ='Demonstração de Resultados'!G31 -> 24634
B63: RESULTADO LÍQUIDO DO PERÍODO COM INVESTIMENTO | C63: =C59-C61 -> 38827.89473 | D63: Comparar com o excel de investimento a titulo pessoal | E63: RESULTADO LÍQUIDO DO PERÍODO COM INVESTIMENTO | F63: =F59-F61 -> 27486.54851 | G63: Comparar com o excel de investimento a titulo pessoal
B64: LUCRO LÍQUIDO DO INVESTIMENTO DEPOIS DE IMPOSTOS | C64: =C63-C62 -> 14193.89473 | E64: LUCRO LÍQUIDO DO INVESTIMENTO DEPOIS DE IMPOSTOS | F64: =F63-F62 -> 2852.548507
B65: IMPOSTOS A PAGAR SOBRE O INVESTIMENTO | C65: =C61-C53 -> 3458.875947 | E65: IMPOSTOS A PAGAR SOBRE O INVESTIMENTO | F65: =F61-F53 -> 695.1306605
B66: RENTABILIDADE FINAL | C66: =C64/C29 -> 0.105139961 | E66: RENTABILIDADE FINAL | F66: =F64/F29 -> 0.02112998894
B68: Qual foi o impacto do investimento na performance da empresa? | G68: Arrendamento | H68: =IF(AND(C13=G68, G68=L10), "", IF(AND(C13<>G68, G68<>L10, C13<>L10), "⚠️ Incompatível entre C13, G68 e L10", IF(C13<>G68, "⚠️ Incompatível entre C13 e G68", IF(C13<>L10, "⚠️ Incompatível entre C13 e L10", IF(G68<>L10, "⚠️ Incompatível entre G68 e L10", ""))))) -> 
B69: Indicador | C69: Atual N+2 | D69: Depois do investimento | E69: Comentário
B70: Liquidez Geral | C70: =C4 -> 0.824960076 | D70: =(Balanço!G17+'Investimento Imobiliário'!L11)/(Balanço!G57+'Investimento Imobiliário'!L17) -> 0.04595033426 | E70: =IF(OR(G68="Revenda", G68="Arrendamento", G68="Uso próprio (ex escritório)"), IF(D70>C70, "A liquidez subiu com o investimento. ", "A liquidez desceu com o investimento. ") & IF(D70<1, "⚠️ Atenção que a liquidez após o investimento está abaixo do nível recomendado para uma operação segura. ", "✅ A empresa mantém uma margem de liquidez contabilística saudável. ") & IF(C14="Classificação inválida (revenda sem CAE imobiliário)", "O imóvel não foi considerado inventário, o que distorce a análise contabilística visto ser uma revenda. ", "") & IF(AND(C13="Revenda", C14="Inventário", C12="Sim", D70>C70), "Apesar da liquidez subir contabilisticamente, a empresa tem menos dinheiro em caixa, o que pode limitar a capacidade de resposta no curto prazo. ", "") & IF(G68="Uso próprio (ex escritório)", "Este imóvel foi adquirido para uso próprio e não gera receita direta.", ""), "") -> A liquidez desceu com o investimento. ⚠️ Atenção que a liquidez após o investimento está abaixo do nível recomendado para uma operação segura. | H70: Valorização do imóvel com o tempo | J70: =G68 -> Arrendamento
B71: Autonomia Financeira | C71: =C5 -> 0.3853667235 | D71: =(Balanço!G47+'Investimento Imobiliário'!L26)/(Balanço!G30+L11+L20) -> 0.338377975 | E71: =IF(D71>C71, IF(D71>=0.3333, "✅ A independência financeira da empresa melhorou e está sólida. A empresa está menos dependente de dívida.", "⚠️ A independência financeira da empresa melhorou, mas continua fraca. É importante reforçar os capitais próprios."), IF(D71<C71, IF(D71>=0.3333, "A empresa tornou-se mais dependente de terceiros (bancos), mas ainda está aceitável. Atenção ao aumento do peso da dívida.", "⚠️ A dependência da empresa face a dívida externa foi para um nível crítico. A empresa está demasiado dependente de financiamento externo."), "A indepedência financeira da empresa manteve-se igual após o investimento.")) -> A empresa tornou-se mais dependente de terceiros (bancos), mas ainda está aceitável. Atenção ao aumento do peso da dívida. | H71: Em função do tempo, as nossas rentabilidades perdem valor | I71: Taxa de inflação | J71: 0.03
B72: Rentabilidade do Capital Próprio (ROE) | C72: =C6 -> 0.2110774082 | D72: =IF(G68="Revenda", C63 / (Balanço!G47 + 'Investimento Imobiliário'!L27), IF(G68="Arrendamento", F63 / (Balanço!G47 + 'Investimento Imobiliário'!L27), IF(G68="Uso próprio (ex escritório)", J53 / (Balanço!G47), 0))) -> 0.2299003196 | E72: =IF(D72>C72, IF(D72>=0.15, "✅ O ROE subiu e está num bom nível. O investimento gerou rentabilidade sobre os capitais próprios.", IF(D72>=0.05, "⚠️ O ROE subiu, mas continua fraco. É preciso aumentar a rentabilidade.", "⚠️ O ROE subiu, mas continua muito baixo. A empresa quase não está a gerar retorno.")), IF(D72<C72, IF(D72>=0.15, "O ROE desceu, o que significa que o investimento não gera retorno. ROE continua num bom nível.", IF(D72>=0.05, "⚠️ O ROE desceu e está fraco, o que significa que o investimento não gera retorno. A rentabilidade do capital próprio piorou.", "⚠️ O ROE desceu para um nível muito baixo, o que significa que o investimento não gera retorno. A empresa não está a gerar retorno para os sócios.")), "O ROE manteve-se estável após o investimento.")) -> ✅ O ROE subiu e está num bom nível. O investimento gerou rentabilidade sobre os capitais próprios. | I72: Rendimento anual efetivo | J72: =IF(G68="Arrendamento", NPV(J71,F64), IF(G68="Uso próprio (ex escritório)", NPV(J71,I60), "Não se aplica")) -> 2769.46457
B73: Rácio de Cobertura de Gastos de Financiamento | C73: =C7 -> 4.636870845 | D73: =IF(G68="Revenda", (C57 + 'Demonstração de Resultados'!G26) / ('Demonstração de Resultados'!G27 + 'Investimento Imobiliário'!L28), IF(G68="Arrendamento", (F57 + 'Demonstração de Resultados'!G26) / ('Demonstração de Resultados'!G27 + 'Investimento Imobiliário'!L28), IF(G68="Uso próprio (ex escritório)", (J47 + 'Demonstração de Resultados'!G26) / ('Demonstração de Resultados'!G27 + 'Investimento Imobiliário'!L28), 0))) -> 3.811073426 | E73: =IF(D73>C73, IF(D73>=3, "✅ A capacidade de gerar rendimentos para garantir encargos financeiros (ex pagamento de juros) melhorou e está sólida. A empresa gera bons resultados face à dívida.", IF(D73>=1.5, "⚠️ A capacidade de gerar rendimentos para garantir encargos financeiros (ex pagamento de juros) melhorou, mas continua fraca. Há risco de não conseguir suportar os encargos com facilidade.", "⚠️ A capacidade de gerar rendimentos para garantir encargos financeiros (ex pagamento de juros) melhorou, mas continua muito fraca. Precisa de reforçar a margem financeira.")), IF(D73<C73, IF(D73>=1.5, "A capacidade de gerar rendimentos para garantir encargos financeiros (ex pagamento de juros) piorou, mas mantém-se dentro de limites aceitáveis.", IF(D73>=1, "⚠️ A capacidade de gerar rendimentos para garantir encargos financeiros (ex pagamento de juros) piorou e está fraca. A empresa poderá ter dificuldades para pagar os encargos.", "⚠️ A empresa não gera resultados suficientes para cobrir os encargos financeiros (ex pagamentos de juros). Risco elevado.")), "A capacidade de gerar rendimentos para garantir encargos financeiros (ex pagamento de juros) manteve-se estável após o investimento.")) -> A capacidade de gerar rendimentos para garantir encargos financeiros (ex pagamento de juros) piorou, mas mantém-se dentro de limites aceitáveis. | H73: Em função do tempo, o valor da casa aumenta | I73: Taxa de apreciação do imóvel | J73: 0.04
B74: Rácio de Envididamento | C74: =C8 -> 0.6146332765 | D74: =(Balanço!G68+'Investimento Imobiliário'!L24+'Investimento Imobiliário'!L17)/(Balanço!G30+'Investimento Imobiliário'!L11+'Investimento Imobiliário'!L20) -> 0.732674534 | E74: =IF(D74<C74, IF(D74<=0.5, "✅ O endividamento (proporção da dívida face aos nossos ativos) desceu e está num nível saudável. A empresa tem boa independência financeira.", IF(D74<=0.66, "O endividamento (proporção da dívida face aos nossos ativos) desceu, mas ainda está num nível que exige alguma atenção.", "⚠️ O endividamento (proporção da dívida face aos nossos ativos) desceu, mas continua elevado. É importante reduzir a dependência de dívida.")), IF(D74>C74, IF(D74<=0.66, "O endividamento (proporção da dívida face aos nossos ativos) aumentou, mas mantém-se num nível aceitável. Monitorizar evolução.", "⚠️ O endividamento (proporção da dívida face aos nossos ativos) aumentou e está num nível de risco. A empresa está demasiado alavancada."), "O nível de endividamento (proporção da dívida face aos nossos ativos) manteve-se estável após o investimento.")) -> ⚠️ O endividamento (proporção da dívida face aos nossos ativos) aumentou e está num nível de risco. A empresa está demasiado alavancada. | I74: Anos da compra para a venda | J74: 5
B75: Comentário | C75: =IF(AND(D70>=1,D73>=1.5,D74<=0.66,D72>=0.05,D72>=C72), "✅ A situação financeira após o investimento é sólida. Todos os indicadores estão dentro dos níveis recomendados e o investimento gerou rentabilidade.", "❌ O investimento levanta preocupações relevantes: " & IF(D70<1,"Liquidez insuficiente (LG). ","") & IF(D73<1.5,"Cobertura fraca dos encargos (RCGF). ","") & IF(D74>0.66,"Endividamento excessivo (RE). ","") & IF(D72<0.05,"Rentabilidade insuficiente (ROE). ","") & IF(D72<C72,"O investimento reduziu o retorno sobre o capital próprio (ROE). ","")) -> ❌ O investimento levanta preocupações relevantes: Liquidez insuficiente (LG). Endividamento excessivo (RE). | I75: Valor de venda sem impostos | J75: =IF(G68="Arrendamento", -FV(J73,J74,F64,F26), IF(G68="Uso próprio (ex escritório)", -FV(J73,J74,I60,F26), "Não se aplica")) -> 161448.6711
B76: Comentário pessoal | H76: Comentário pessoal

Sheet Relatório
G2: Análise da Performance Financeira | O2: A empresa tem capacidade para investir? | V2: Detalhes do investimento | AA2: Impacto do investimento na performance financeira da empresa
B4: Relatório Performance Financeira e Análise de Investimento | J4: =Performance!F4 -> ► A rentabilidade para os sócios manteve-se estável. | V4: Finalidade | X4: ='Investimento Imobiliário'!C13 -> Arrendamento
G5: Return on Equity (ROE) | H5: =Performance!D4 -> 0.2110774082 | O5: Liquidez Geral | P5: ='Investimento Imobiliário'!C4 -> 0.824960076 | S5: Recomendado | T5: 1.5 | AB5: Atual | AD5: Pós-Investimento
V6: Empresa tem atividade aberta? | X6: ='Investimento Imobiliário'!C12 -> Não | AA6: Liquidez Geral | AB6: ='Investimento Imobiliário'!C70 -> 0.824960076 | AD6: ='Investimento Imobiliário'!D70 -> 0.04595033426
B7: Nome da Empresa | C7: Empresa 1 | O7: =IF(P5>T5,"▲ A liquidez é adequada para suportar um investimento.","▼ A liquidez é inferior ao ideal para realizar um investimento.") -> ▼ A liquidez é inferior ao ideal para realizar um investimento.
J8: =Performance!F6 -> ▲ A empresa melhorou a capacidade de gerar resultados operacionais com o total dos ativos investidos. | V8: Rúbrica contabilística para o imóvel | X8: ='Investimento Imobiliário'!C14 -> Propriedade de investimento | AA8: ='Investimento Imobiliário'!E70 -> A liquidez desceu com o investimento. ⚠️ Atenção que a liquidez após o investimento está abaixo do nível recomendado para uma operação segura.
B9: Setor de Atividade da Empresa | G9: Return on Assets (ROA) | H9: =Performance!D6 -> 0.1289805973
V10: Tipo de Propriedade | X10: =IF('Investimento Imobiliário'!C13="Uso próprio (ex escritório)", 'Investimento Imobiliário'!I25, IF('Investimento Imobiliário'!C13="Revenda", 'Investimento Imobiliário'!C25, IF('Investimento Imobiliário'!C13="Arrendamento", 'Investimento Imobiliário'!F25, 0))) -> Habitação
B11: Data da Análise | C11: =TODAY() -> 2025-11-03 | O11: Autonomia Financeira | P11: ='Investimento Imobiliário'!C5 -> 0.3853667235 | S11: Recomendado | T11: 0.33
V12: Valor de Aquisição | X12: =IF('Investimento Imobiliário'!C13="Uso próprio (ex escritório)", 'Investimento Imobiliário'!I26, IF('Investimento Imobiliário'!C13="Revenda", 'Investimento Imobiliário'!C26, IF('Investimento Imobiliário'!C13="Arrendamento", 'Investimento Imobiliário'!F26, 0))) -> 120000 | AB12: Atual | AD12: Pós-Investimento
B13: Objetivo do Relatório | J13: =Performance!F8 -> ► Autonomia financeira razoável, mas atenção ao equilíbrio entre capitais próprios e alheios. | O13: =IF(P11>T11,"▲ A empresa tem boa autonomia e reduzida dependência externa.","▼ A autonomia é fraca e pode limitar acesso a financiamento.") -> ▲ A empresa tem boa autonomia e reduzida dependência externa. | AA13: Autonomia Financeira | AB13: ='Investimento Imobiliário'!C71 -> 0.3853667235 | AD13: ='Investimento Imobiliário'!D71 -> 0.338377975
G14: Autonomia Financeira | H14: =Performance!D8 -> 0.3853667235 | V14: Financiamento | X14: ='Investimento Imobiliário'!F13 -> 70000
AA15: ='Investimento Imobiliário'!E71 -> A empresa tornou-se mais dependente de terceiros (bancos), mas ainda está aceitável. Atenção ao aumento do peso da dívida.
B16: Descrição | V16: Investido em capitais próprios | X16: =IF('Investimento Imobiliário'!C13="Uso próprio (ex escritório)", 'Investimento Imobiliário'!I29, IF('Investimento Imobiliário'!C13="Revenda", 'Investimento Imobiliário'!C29, IF('Investimento Imobiliário'!C13="Arrendamento", 'Investimento Imobiliário'!F29, 0))) -> 135000
G17: Cobertura de Gastos de Financiamento | J17: =Performance!F10 -> ▲ A empresa tem boa capacidade para suportar custos financeiros. Este indicador melhorou face ao último ano. | O17: Rentabilidade do Capital Próprio (ROE) | P17: ='Investimento Imobiliário'!C6 -> 0.2110774082 | S17: Recomendado | T17: 0.05
H18: =Performance!D10 -> 4.636870845 | V18: Resultado líquido do período antes do investimento | X18: =IF('Investimento Imobiliário'!C13="Uso próprio (ex escritório)", 'Investimento Imobiliário'!J52, IF('Investimento Imobiliário'!C13="Revenda", 'Investimento Imobiliário'!C62, IF('Investimento Imobiliário'!C13="Arrendamento", 'Investimento Imobiliário'!F62, 0))) -> 24634 | AB18: Atual | AD18: Pós-Investimento
O19: =IF(P17>T17,"▲ A empresa está a rentabilizar bem o capital dos sócios.","▼ A rentabilidade está abaixo do esperado para novos investimentos.") -> ▲ A empresa está a rentabilizar bem o capital dos sócios. | AA19: Rentabilidade do Capital Próprio (ROE) | AB19: ='Investimento Imobiliário'!C72 -> 0.2110774082 | AD19: ='Investimento Imobiliário'!D72 -> 0.2299003196
B21: Dados Contabilísticos para N+2 (atual) | V21: Resultado líquido do período depois do investimento | X21: =IF('Investimento Imobiliário'!C13="Uso próprio (ex escritório)", 'Investimento Imobiliário'!J53, IF('Investimento Imobiliário'!C13="Revenda", 'Investimento Imobiliário'!C63, IF('Investimento Imobiliário'!C13="Arrendamento", 'Investimento Imobiliário'!F63, 0))) -> 27486.54851 | AA21: ='Investimento Imobiliário'!E72 -> ✅ O ROE subiu e está num bom nível. O investimento gerou rentabilidade sobre os capitais próprios.
J22: =Performance!F12 -> ▼ Situação financeira crítica, com desequilíbrio elevado: fundo de maneio negativo e tesouraria deficitária. Risco iminente de incapacidade em cumprir compromissos financeiros.
B23: Total do Ativo | C23: =Balanço!G30 -> 302844 | G23: Resumo do Balanço | H23: =Performance!D12 -> Mau | O23: Cobertura de Gastos de Financiamento | P23: ='Investimento Imobiliário'!C7 -> 4.636870845 | S23: Recomendado | T23: 2
V24: =IF('Investimento Imobiliário'!C13="Uso próprio (ex escritório)", "Prejuizo final pós compra", IF('Investimento Imobiliário'!C13="Revenda", "Lucro líquido", IF('Investimento Imobiliário'!C13="Arrendamento", "Cashflow líquido", 0))) -> Cashflow líquido | X24: =IF('Investimento Imobiliário'!C13="Uso próprio (ex escritório)", 'Investimento Imobiliário'!J54, IF('Investimento Imobiliário'!C13="Revenda", 'Investimento Imobiliário'!C64, IF('Investimento Imobiliário'!C13="Arrendamento", 'Investimento Imobiliário'!F64, 0))) -> 2852.548507 | AB24: Atual | AD24: Pós-Investimento
B25: Total do Passivo | C25: =Balanço!G68 -> 186138 | O25: =IF(P23>T23,"▲ A cobertura de juros é boa, há margem para financiar.","▼ A margem para suportar encargos financeiros é reduzida.") -> ▲ A cobertura de juros é boa, há margem para financiar. | AA25: Cobertura de Gastos de Financiamento | AB25: ='Investimento Imobiliário'!C73 -> 4.636870845 | AD25: ='Investimento Imobiliário'!D73 -> 3.811073426
V26: Rentabilidade final | X26: =IF('Investimento Imobiliário'!C13="Uso próprio (ex escritório)", "Não se aplica", IF('Investimento Imobiliário'!C13="Revenda", 'Investimento Imobiliário'!C66, IF('Investimento Imobiliário'!C13="Arrendamento", 'Investimento Imobiliário'!F66, 0))) -> 00:30:25.631
B27: Faturação (vendas) | C27: ='Demonstração de Resultados'!G5 -> 418213 | J27: =Performance!F14 -> ▼ A empresa pode ter dificuldades em cumprir os compromissos de curto prazo. Indicador diminuiu face aos anos anteriores, piorando a situação financeira. | AA27: ='Investimento Imobiliário'!E73 -> A capacidade de gerar rendimentos para garantir encargos financeiros (ex pagamento de juros) piorou, mas mantém-se dentro de limites aceitáveis.
G28: Liquidez Geral | H28: =Performance!D14 -> 0.824960076 | V28: Impostos a pagar sobre o investimento | X28: =IF('Investimento Imobiliário'!C13="Uso próprio (ex escritório)", "Não se aplica", IF('Investimento Imobiliário'!C13="Revenda", 'Investimento Imobiliário'!C65, IF('Investimento Imobiliário'!C13="Arrendamento", 'Investimento Imobiliário'!F65, 0))) -> 695.1306605
B29: CMCMV | C29: ='Demonstração de Resultados'!G10 -> 237336 | O29: Rácio de Envididamento | P29: ='Investimento Imobiliário'!C8 -> 0.6146332765 | S29: Recomendado | T29: 0.66
AB30: Atual | AD30: Pós-Investimento
B31: EBITDA | C31: ='Demonstração de Resultados'!G21 -> 53703 | O31: =IF(P29<T29,"▲ O nível de endividamento está dentro dos limites saudáveis.","▼ O endividamento é elevado, o que aumenta o risco do investimento.") -> ▲ O nível de endividamento está dentro dos limites saudáveis. | AA31: Rácio de Envididamento | AB31: ='Investimento Imobiliário'!C74 -> 0.6146332765 | AD31: ='Investimento Imobiliário'!D74 -> 0.732674534
J32: =Performance!F16 -> ▲ A empresa está mais eficiente em gerar vendas com o investimento total face aos anos anteriores. | V32: Comparação entre investir como empresa e investir a título pessoal
B33: EBIT | C33: ='Demonstração de Resultados'!G25 -> 39061 | G33: Rotação do Ativo | H33: =Performance!D16 -> 1.380951909 | AA33: ='Investimento Imobiliário'!E74 -> ⚠️ O endividamento (proporção da dívida face aos nossos ativos) aumentou e está num nível de risco. A empresa está demasiado alavancada.
B35: Resultado antes de impostos | C35: ='Demonstração de Resultados'!G29 -> 30637 | O35: Comentário | P35: ='Investimento Imobiliário'!C9 -> ⚠️ Boa estrutura e rentabilidade, mas sem liquidez. O investimento só deve avançar após reforço de tesouraria.
AA36: Comentário
B37: Imposto sobre o rendimento | C37: ='Demonstração de Resultados'!G30 -> 6003 | G37: Grau de Alavanca Financeira | J37: =Performance!F18 -> ► O risco financeiro manteve-se estável.
H38: =Performance!D18 -> 1.274961648 | AA38: ='Investimento Imobiliário'!C75 -> ❌ O investimento levanta preocupações relevantes: Liquidez insuficiente (LG). Endividamento excessivo (RE).
B39: Resultado líquido do período | C39: ='Demonstração de Resultados'!G31 -> 24634
O40: Comentário pessoal
V41: Comentário pessoal
B42: Comentário pessoal | G42: Comentário pessoal | AA42: Comentário pessoal
